Cogmind - Beta 12 X1 @@@ ROGUE MODE // 2022.08.28 @ 15:22:48 // AFD2020/Player2 Player: cptwinky Result: Core destroyed Performance ------------- Evolutions (9) 4500 Regions Visited (33) 6600 Robots Destroyed (261) 1305 Value Destroyed (14330) 14330 Prototype IDs (84) 1680 Alien Tech Used (0) 0 Bonus (22960) 22960 TOTAL SCORE: 51375 Bonus ------- Triggered High Security 1000 High Alert Combat Kills 5025 Follower Combat Kills 13646 Entered Garrisons 1200 Used RIF Installer 3500 Met Data Miner 300 Met R17 at Cetus 500 Scanned by Researcher 500 Friendly Fire -2711 Cogmind --------- Core Integrity 0/1600 Matter 292/300 Energy 225/640 System Corruption 6% Temperature Cool (0) Movement Treading (243) Ox1 Location -1/Access Parts ------- > --- POWER (3) -------- Reinforced Antimatter Reactor Reinforced Antimatter Reactor Light Quantum Reactor > --- PROPULSION (6) --- Improved Heavy Treads Armored Heavy Treads Centrium Heavy Treads > --- UTILITY (13) ----- Advanced Heat Sink Advanced Heat Sink Huge Storage Unit Experimental Core Analyzer Experimental Core Analyzer Layered Heavy Armor Plating Layered Heavy Armor Plating Advanced Force Field Relay Coupler [NC] (11) Relay Coupler [Sentry] (2) > --- WEAPON (3) ------- Enhanced Nova Cannon Tri-rail Accelerator > --- INVENTORY (25) --- Quantum Reactor Centrium Heavy Treads High-capacity Matter Pod (200) Advanced Sensor Array Advanced Focal Shield Relay Coupler [Hunter] (21) Experimental Field Recycling Unit (0) Heavy Wave Gun Compact HERF Cannon Compact HERF Cannon Railgun Heavy Missile Launcher Advanced Datajack Advanced Remote Datajack Advanced Remote Datajack Nanosword Peak State ------------ > --- POWER ------------ Reinforced Antimatter Reactor Reinforced Antimatter Reactor Light Quantum Reactor > --- PROPULSION ------- Armored Heavy Treads Centrium Heavy Treads Centrium Heavy Treads > --- UTILITY ---------- Advanced Heat Sink Huge Storage Unit Advanced Sensor Array Advanced Signal Interpreter Improved Weapon Shielding Layered Heavy Armor Plating Advanced Focal Shield Advanced Force Field Relay Coupler [NC] Experimental Field Recycling Unit Stealth Drone Bay > --- WEAPON ----------- Heavy Wave Gun Tri-rail Accelerator > --- INVENTORY -------- Quantum Reactor Centrium Heavy Treads High-capacity Matter Pod Layered Heavy Armor Plating Layered Heavy Armor Plating Advanced Force Field Relay Coupler [NC] Relay Coupler [NC] Relay Coupler [NC] Relay Coupler [Swarmer] Relay Coupler [Grunt] Relay Coupler [Hunter] Compact HERF Cannon Compact HERF Cannon Enhanced Nova Cannon Heavy Missile Launcher Advanced Datajack Advanced Remote Datajack Advanced Remote Datajack Nanosword [Rating: 181] Favorites ----------- Power Cooled Deuterium Engine Engine Cooled Deuterium Engine Power Core Reinforced Fission Core Reactor Cold Fusion Reactor Propulsion Armored Treads Treads Armored Treads Leg Aluminum Leg Utility Huge Storage Unit Device Remote Shield Storage Huge Storage Unit Processor Enhanced Optical Array Hackware Relay Coupler [NC] Protection Hardened Heavy Armor Plating Weapon High-powered Shotgun Energy Gun Phase Gun Energy Cannon Proton Cannon Ballistic Gun High-powered Shotgun Ballistic Cannon Heavy Assault Cannon Launcher Heavy Missile Launcher Special Weapon Improved Remote Datajack Impact Weapon Maul Slashing Weapon Nanosword Special Melee Weapon Datajack Build | -11 -10 -10 -9 -9 -8 -8 -8 -8 -7 -7 -7 -7 -6 -6 -6 -6 -6 -6 -6 -5 -5 -5 -4 -4 -4 -4 -4 -3 -3 -3 -3 -2 -1 ------- Run | Scr Mat Min Mat Sto Mat Gar Mat Gar Fac Low Low Dat Pro Fac Gar Fac Low Low Zio Pro Fac Gar Fac Ext Cet Arc Hub Res Gar Tes Gar Res Acc Slots Evolved 18 | . . . 2 . 2 . . . 2 . . . . 2 . . . . . . 2 . 2 . . . . 2 . . . 2 2 Power 2 | . . . . . . . . . . . . . . . . . . . . . 1 . . . . . . . . . . 1 . Propulsion 4 | . . . 1 . . . . . 1 . . . . 1 . . . . . . 1 . . . . . . . . . . . . Utility 11 | . . . 1 . 1 . . . 1 . . . . 1 . . . . . . . . 2 . . . . 2 . . . 1 2 Weapon 1 | . . . . . 1 . . . . . . . . . . . . . . . . . . . . . . . . . . . . Parts Attached 332 | 3 9 2 8 15 6 8 6 14 10 17 8 2 6 7 16 24 10 2 2 3 8 17 9 7 7 6 12 1 22 5 17 14 29 Power 17 | . 1 . 1 1 . . . . . 1 . . 1 . 1 1 . . . . 1 4 . 1 1 . . . 1 . . 2 . Engine 8 | . 1 . 1 . . . . . . 1 . . . . 1 1 . . . . 1 1 . 1 . . . . . . . . . Core 2 | . . . . . . . . . . . . . . . . . . . . . . 1 . . 1 . . . . . . . . Reactor 7 | . . . . 1 . . . . . . . . 1 . . . . . . . . 2 . . . . . . 1 . . 2 . Propulsion 51 | 2 1 . 1 7 . 4 . 4 2 . . . . 2 1 10 1 . . . 5 4 . 1 . . 1 . 2 . 1 1 1 Treads 51 | 2 1 . 1 7 . 4 . 4 2 . . . . 2 1 10 1 . . . 5 4 . 1 . . 1 . 2 . 1 1 1 Leg . | . . . . . . . . . . . . . . . . . . . . . . . . . . . . . . . . . . Wheel . | . . . . . . . . . . . . . . . . . . . . . . . . . . . . . . . . . . Hover . | . . . . . . . . . . . . . . . . . . . . . . . . . . . . . . . . . . Flight . | . . . . . . . . . . . . . . . . . . . . . . . . . . . . . . . . . . Utility 121 | . 3 . 2 2 1 2 2 2 4 5 4 . 3 5 3 6 1 1 . 2 2 3 6 5 3 4 7 . 10 2 8 6 17 Device 51 | . . . 1 2 . 2 . 1 2 4 1 . 3 2 2 3 . . . 2 . 2 . 1 2 1 . . 6 1 5 3 5 Storage 4 | . 2 . . . . . . . . . . . . . 1 . . . . . . . 1 . . . . . . . . . . Processor 13 | . 1 . . . . . . . . . 1 . . 1 . . . 1 . . . . 1 . . . . . 1 . 1 1 5 Hackware 27 | . . . . . 1 . 1 . 1 . . . . . . 2 . . . . 1 . 3 4 . 2 4 . 1 1 1 2 3 Protection 26 | . . . 1 . . . 1 1 1 1 2 . . 2 . 1 1 . . . 1 1 1 . 1 1 3 . 2 . 1 . 4 Artifact . | . . . . . . . . . . . . . . . . . . . . . . . . . . . . . . . . . . Weapon 143 | 1 4 2 4 5 5 2 4 8 4 11 4 2 2 . 11 7 8 1 2 1 . 6 3 . 3 2 4 1 9 3 8 5 11 Energy Gun 6 | 1 1 . . . . . . . . . . . . . . . . . . . . . . . . . . . 3 . . 1 . Energy Cannon 15 | . . . . . . . . . . . . . . . . 2 3 . . 1 . 2 . . . . . . 1 . 4 . 2 Ballistic Gun 49 | . 2 1 2 4 3 . 3 5 3 6 3 . 1 . 6 1 . . . . . 3 1 . 1 1 1 . 2 . . . . Ballistic Cannon 10 | . . . . . 1 1 . . 1 . . . . . . 1 . 1 1 . . . . . 1 . 1 . 1 1 . . . Launcher 27 | . 1 1 1 . 1 1 . 2 . 4 1 1 . . 1 . 4 . 1 . . . . . 1 . 1 . . . 1 2 3 Special Weapon 14 | . . . . . . . . . . . . . . . . . 1 . . . . 1 2 . . 1 1 1 . 1 . 1 5 Impact Weapon 9 | . . . 1 1 . . . 1 . 1 . . 1 . 3 . . . . . . . . . . . . . 1 . . . . Slashing Weapon 3 | . . . . . . . . . . . . . . . . . . . . . . . . . . . . . . . 1 1 1 Piercing Weapon . | . . . . . . . . . . . . . . . . . . . . . . . . . . . . . . . . . . Special Melee Weapon 10 | . . . . . . . 1 . . . . 1 . . 1 3 . . . . . . . . . . . . 1 1 2 . . Unidentified Prototypes 14 | . . . . 1 . 1 . . . 1 . . . . . . . . . . . 4 . . . . 2 . . . 2 1 2 Parts Lost 32 | . 1 . . 5 2 2 . . 2 . . . . . . . . . . . . 3 . . 3 . 4 . 5 . . 1 4 Power 3 | . 1 . . . . . . . . . . . . . . . . . . . . 1 . . 1 . . . . . . . . Propulsion 3 | . . . . 1 . 1 . . . . . . . . . . . . . . . . . . . . 1 . . . . . . Utility 20 | . . . . 1 2 1 . . 2 . . . . . . . . . . . . 2 . . 1 . 1 . 5 . . 1 4 Weapon 6 | . . . . 3 . . . . . . . . . . . . . . . . . . . . 1 . 2 . . . . . . Highest Loss Streak 4 | . 1 . . 3 1 1 . . 2 . . . . . . . . . . . . 3 . . 2 . 4 . 4 . . 1 3 To Critical Strikes 1 | . . . . . . . . . . . . . . . . . . . . . . . . . . . 1 . . . . . . Average Slot Usage (%) 87 | . 98 100 100 96 86 87 94 98 92 96 100 100 100 98 93 87 85 86 85 86 88 84 71 73 73 72 77 76 74 72 70 71 75 Engine 5 | . 13 14 11 6 . . . . . 2 7 7 5 . 5 6 6 6 6 6 11 6 10 10 5 5 5 4 4 4 4 1 . Reactor 2 | . . . . 4 9 9 9 9 7 4 . . 1 6 . . . . . . . 3 . . . . . . . 4 4 10 12 Treads 28 | . 28 28 33 33 27 27 27 27 30 30 30 30 30 32 33 33 33 33 33 33 35 32 21 18 15 15 15 14 14 14 14 13 12 Device 11 | . . . 11 18 15 25 16 12 9 11 15 15 15 13 13 12 13 13 13 13 6 9 . . 4 . . . 7 12 14 17 15 Storage 7 | . 14 14 11 11 9 9 9 9 7 7 7 7 7 6 6 6 6 6 6 6 5 5 8 10 10 10 10 9 9 9 4 4 4 Processor 4 | . 13 14 1 . . . . . . . . . . 5 6 6 6 6 6 6 5 5 10 10 10 10 10 9 2 . 2 3 8 Hackware 1 | . . . . . 4 . 1 1 . . . . . . . . . . . . 4 . 1 5 5 10 15 9 2 3 6 6 7 Protection 7 | . . . 9 . . . 7 12 12 15 14 15 15 12 6 6 6 6 6 6 5 6 8 5 5 4 4 9 14 10 6 4 8 Ballistic Gun 8 | . 22 27 21 21 14 9 19 23 22 20 22 15 19 20 18 5 . . . . . 3 3 . 1 4 3 4 3 1 . . . Ballistic Cannon 3 | . . . . . 5 8 3 . . . . . . . . 4 6 6 5 6 5 5 5 5 5 5 4 4 3 4 4 4 4 Launcher 1 | . . . . . . . . . . 2 . 4 3 . . . . 6 5 2 . . . . 1 . . . . . . . . Naked Turns . | . . . . . . . . . . . . . . . . . . . . . . . . . . . . . . . . . . Heaviest Build 280 | 11 29 29 33 45 54 55 57 55 59 66 61 60 63 67 131 141 137 136 136 137 148 159 238 219 234 230 230 224 280 280 268 212 228 Greatest Support 240 | 40 40 40 40 60 60 60 60 60 80 80 80 80 80 100 100 110 100 100 100 100 148 200 200 220 220 220 225 225 240 240 240 240 220 Greatest Overweight (x) 76 | . 1 . . . . . . . . . . . . . 1 1 1 1 45 1 . 1 1 1 1 76 1 . 1 1 1 . 1 Average Overweight (x) 1 | . . . . . . . . . . . . . . . . 1 1 1 16 1 . . . . . 11 . . . 1 . . . Largest Inventory Capacity 25 | 8 15 15 15 15 15 15 15 15 15 15 15 15 15 15 25 25 25 25 25 25 25 25 25 25 25 25 25 25 25 25 25 25 25 Average Capacity 21 | 8 13 15 15 15 15 15 15 15 15 15 15 15 15 15 24 25 25 25 25 25 25 25 25 25 25 25 25 25 25 25 25 25 25 Most Carried 25 | 6 14 14 15 15 14 15 15 15 15 15 15 15 15 15 25 25 25 25 25 25 25 25 25 23 25 25 25 20 25 25 25 25 25 Average Carried 20 | 6 10 14 14 14 12 13 14 14 14 15 14 15 15 14 20 24 24 24 25 24 24 24 24 19 19 24 21 20 23 25 24 24 22 Final Capacity 25 | 8 15 15 15 15 15 15 15 15 15 15 15 15 15 15 25 25 25 25 25 25 25 25 25 25 25 25 25 25 25 25 25 25 25 Final Carried 25 | 6 14 14 15 15 12 15 15 15 15 15 15 15 15 15 25 25 25 25 25 25 25 25 24 19 25 25 21 20 25 25 25 25 17 Class Distribution -------------------- 32% | Bothacker-Mutant 17% | Bothacker-Tank 13% | Mutant 12% | Botlord-Mutant 10% | Scavenger-Tank 6% | Scavenger-Mutant 4% | Tank Dominant Class ---------------- Mutant | -10/Materials Mutant | -10/Mines Mutant | -9/Materials Mutant | -9/Storage Mutant | -8/Materials Bothacker-Mutant | -8/Garrison Scavenger-Tank | -8/Materials Scavenger-Tank | -8/Garrison Scavenger-Tank | -7/Factory Scavenger-Tank | -7/Lower Caves Tank | -7/Lower Caves Scavenger-Mutant | -7/Data Miner Tank | -6/Proximity Caves Scavenger-Tank | -6/Factory Bothacker-Tank | -6/Garrison Bothacker-Mutant | -6/Factory Bothacker-Mutant | -6/Lower Caves Bothacker-Mutant | -6/Lower Caves Bothacker-Tank | -6/Zion Bothacker-Mutant | -5/Proximity Caves Bothacker-Mutant | -5/Factory Bothacker-Mutant | -5/Garrison Botlord-Mutant | -4/Factory Bothacker-Mutant | -4/Extension Bothacker-Mutant | -4/Cetus Bothacker-Mutant | -4/Archives Scavenger-Mutant | -4/Hub_04(d) Scavenger-Mutant | -3/Research Botlord-Tank | -3/Garrison Botlord-Mutant | -3/Testing Botlord-Mutant | -3/Garrison Botlord-Mutant | -2/Research Botlord-Mutant | -1/Access Resources | -11 -10 -10 -9 -9 -8 -8 -8 -8 -7 -7 -7 -7 -6 -6 -6 -6 -6 -6 -6 -5 -5 -5 -4 -4 -4 -4 -4 -3 -3 -3 -3 -2 -1 ----------- Run | Scr Mat Min Mat Sto Mat Gar Mat Gar Fac Low Low Dat Pro Fac Gar Fac Low Low Zio Pro Fac Gar Fac Ext Cet Arc Hub Res Gar Tes Gar Res Acc Matter Collected 11551 | 230 161 64 130 947 201 287 . 631 277 342 161 . 116 154 566 515 398 261 . 320 . 867 59 659 366 8 560 . 688 173 603 347 1460 Remotely . | . . . . . . . . . . . . . . . . . . . . . . . . . . . . . . . . . . Salvage Created 10194 | . 264 76 174 1299 298 140 . 416 259 307 80 . 121 95 518 404 252 318 . 541 78 783 41 104 396 . 136 . 434 137 422 447 1654 Parts 417 | . 23 4 5 77 14 8 . 25 12 10 5 . 5 5 17 23 12 3 . 23 . 14 4 9 10 . 7 . 15 10 16 12 49 Haulers Intercepted 6 | . 1 . 1 3 . . . . . . . . . . . . . . . . 1 . . . . . . . . . . . . Recyclers Shooed 17 | . 1 . 1 5 . . . . 3 . . . . . . 1 . . . . . . . . . . 1 . . . . 2 3 Parts Field Recycled 4 | . . . . . . . . . . . . . . . . . . . . . . . . . . . . . . . . . 4 Retrieved Matter 107 | . . . . . . . . . . . . . . . . . . . . . . . . . . . . . . . . . 107 Parts Self-Destructed 72 | . . . . . . . . . . 16 2 . 11 . . . 15 1 3 24 . . . . . . . . . . . . . Prevented 1 | . . . . . . . . . . . . . . . . . . 1 . . . . . . . . . . . . . . . Kills | -11 -10 -10 -9 -9 -8 -8 -8 -8 -7 -7 -7 -7 -6 -6 -6 -6 -6 -6 -6 -5 -5 -5 -4 -4 -4 -4 -4 -3 -3 -3 -3 -2 -1 ------- Run | Scr Mat Min Mat Sto Mat Gar Mat Gar Fac Low Low Dat Pro Fac Gar Fac Low Low Zio Pro Fac Gar Fac Ext Cet Arc Hub Res Gar Tes Gar Res Acc Combat Hostiles Destroyed 215 | . 5 3 4 20 10 4 . 16 3 8 3 . 4 2 7 10 6 5 . 18 . 16 1 1 11 . 3 . 6 2 10 6 31 Melee 2 | . . . . . . . . . . . . . . . . . . . . . . . . . . . . . 1 . 1 . . Guns 55 | . 2 . 1 20 1 . . 5 3 5 1 . . 2 7 4 . . . . . . . . 1 . . . 3 . . . . Cannons 92 | . . . . . 7 4 . . . . . . . . . 6 4 4 . 4 . 16 1 1 4 . 2 . 2 2 7 4 24 AOE 65 | . 2 3 3 . 2 . . 11 . 3 2 . 4 . . . 2 1 . 14 . . . . 6 . 1 . . . 2 2 7 Classes Destroyed 26 | . 7 . . 3 3 . . . . . 1 . 1 2 1 3 . . . . . 1 . . . . . . . 1 . . 3 Worker 6 | . . . . . 1 . . . 1 . . . . . . . . . . . 2 . . . . . 1 . . . . 1 . Builder 8 | . 1 . . 2 1 . . . . . . . . . . . . . . . . . . 1 . . 1 . . . . . 2 Tunneler 1 | . . . . . . . . . . . . . . 1 . . . . . . . . . . . . . . . . . . . Hauler 6 | . 1 . 1 3 . . . . . . . . . . . . . . . . 1 . . . . . . . . . . . . Recycler 10 | . 1 1 1 3 . . . . 1 . . . . . . . . . . . . . . . . . . . . . . 1 2 Mechanic 3 | . . . . 1 . . . . . . . . . . . . . . . . . . . . . . . . . . . . 2 Operator 2 | . 1 . . 1 . . . . . . . . . . . . . . . . . . . . . . . . . . . . . Watcher 5 | . 1 . 1 . . . . . 1 . . . . . . . . . . . . . . 2 . . . . . . . . . Swarmer 51 | . 3 3 3 3 3 . . 7 . 2 3 . 4 . 1 1 2 . . 6 . 4 . . . . . . . . 1 2 3 Cutter 1 | . . . . . . . . . . . . . . . . 1 . . . . . . . . . . . . . . . . . Saboteur 2 | . . . . . . . . . . . . . . . . . . . . . . . . . . . . . . . . . 2 Grunt 74 | . 2 . 1 7 3 2 . 5 . 5 . . . . 1 4 2 2 . 9 . 5 . 1 7 . . . 4 . 3 1 10 Brawler 9 | . . . . 1 1 . . . . . . . . . 1 . . 1 . . . . . . . . . . . . . . 5 Duelist 8 | . . . . . 1 . . 1 . . . . . . . . . . . 2 . . . . . . . . . . 1 . 3 Protector 1 | . . . . . . . . . . . . . . . . . . . . . . . . . . . . . . . . . 1 Researcher 1 | . . . . . . . . . . . . . . . . . . . . . . . . . . . . . . 1 . . . Sentry 30 | . . . . 9 1 2 . 2 2 . . . . . 1 . 1 1 . 1 . 6 . . . . 1 . 1 . . 1 1 Specialist 1 | . . . . . . . . . . . . . . . 1 . . . . . . . . . . . . . . . . . . Hunter 12 | . . . . . 1 . . 1 1 1 . . . 1 2 . . . . . . . . . . . 2 . . 1 1 1 . Programmer 15 | . . . . . . . . . . . . . . 1 . 1 . . . . . . 1 . . . . . 1 1 4 1 5 Heavy 2 | . . . . . . . . . . . . . . . . 2 . . . . . . . . . . . . . . . . . Behemoth 3 | . . . . . . . . . . . . . . . . 1 1 1 . . . . . . . . . . . . . . . Cetus Guard 4 | . . . . . . . . . . . . . . . . . . . . . . . . . 4 . . . . . . . . Striker 1 | . . . . . . . . . . . . . . . . . . . . . . . . . . . . . . . . . 1 Executioner 1 | . . . . . . . . . . . . . . . . . . . . . . 1 . . . . . . . . . . . Decomposer 1 | . . . . . . . . . . 1 . . . . . . . . . . . . . . . . . . . . . . . Packrat 2 | . . . . . . . . . . . . . . . . . . 2 . . . . . . . . . . . . . . . Samaritan 1 | . . . . . . . . . . . . . 1 . . . . . . . . . . . . . . . . . . . . Savage 2 | . . . . . . . . 1 . . . . . . . . . 1 . . . . . . . . . . . . . . . Butcher 1 | . . . . . . . . . . . . . . . . . 1 . . . . . . . . . . . . . . . . Mutant 1 | . . . . . . . . . . . 1 . . . . . . . . . . . . . . . . . . . . . . Best Kill Streak 10 | . 3 3 3 6 5 2 . 7 2 4 3 . 4 2 3 3 2 2 . 7 2 9 1 1 7 . 4 . 2 1 2 2 10 Combat Bots Only 9 | . 2 3 3 6 3 2 . 7 1 4 3 . 4 1 3 3 2 2 . 7 . 9 1 1 7 . 1 . 2 1 2 2 9 Max Kills in Single Turn 4 | . 3 2 3 2 3 1 . 3 1 1 2 . 4 1 1 1 2 1 . 3 1 2 1 1 4 . 1 . 1 1 1 1 4 Gunslinging . | . . . . . . . . . . . . . . . . . . . . . . . . . . . . . . . . . . Exploded 4 | . 2 2 3 . 2 . . 3 . 1 2 . 4 . . . 2 1 . 3 . . . . 4 . 1 . . . 1 1 3 Melee 1 | . . . . . . . . . . . . . . . . . . . . . . . . . . . . . 1 . 1 . . Uniques/NPCs Destroyed . | . . . . . . . . . . . . . . . . . . . . . . . . . . . . . . . . . . Combat | -11 -10 -10 -9 -9 -8 -8 -8 -8 -7 -7 -7 -7 -6 -6 -6 -6 -6 -6 -6 -5 -5 -5 -4 -4 -4 -4 -4 -3 -3 -3 -3 -2 -1 -------- Run | Scr Mat Min Mat Sto Mat Gar Mat Gar Fac Low Low Dat Pro Fac Gar Fac Low Low Zio Pro Fac Gar Fac Ext Cet Arc Hub Res Gar Tes Gar Res Acc Damage Taken 17394 | . 237 178 45 950 614 303 152 521 302 207 27 . 67 302 262 1115 505 313 . 473 . 1392 60 842 829 48 1099 . 1528 639 1102 325 2957 Core 1204 | . 31 2 24 100 51 . 18 45 14 8 9 . 9 22 . 74 20 . . . . 139 . 160 10 . 36 . 187 . 51 23 171 Absorbed by Shields 5280 | . . . . . . . . . 127 75 11 . 23 52 31 204 138 74 . 117 . 257 . 111 436 . 127 . 595 394 483 267 1758 Reduced by Siege Mode 74 | . . . . . . . . . . . . . . . . . . . . . . . . . 46 . . . 6 . 22 . . Redirected to Shielding 66 | . . . . . . . . . . . . . . . . . . . . . . . . . . . . . . . . . 66 Regen/Repaired (Parts) 1669 | . . . . 82 . . . . 332 72 . . 11 198 61 138 . . . . . . . . . . . . . 161 . . 614 Core Remaining (%) 63 | 100 . 64 . 23 . . . 53 . . . . 78 . . . . . . 64 . 74 . . . . 12 . . . 74 92 . Volleys Fired 929 | . 24 2 7 79 28 26 5 27 21 18 8 . 4 7 52 44 28 22 . 20 3 85 14 60 30 13 28 2 36 10 56 44 126 Largest 3 | . 2 1 2 2 3 1 2 3 3 3 2 . 3 3 3 3 1 1 . 1 1 1 1 1 2 1 2 1 3 2 2 2 1 Hottest 171 | . 90 30 46 46 69 60 60 71 78 78 50 . 75 75 75 85 80 60 . 60 60 75 60 60 95 35 83 10 171 83 154 148 120 Shots Fired 1249 | . 47 2 13 159 32 26 6 46 53 38 10 . 8 21 103 64 29 23 . 20 3 85 14 60 33 13 34 2 65 11 59 45 125 Gun 591 | . 46 . 12 159 6 2 2 33 53 32 7 . 6 21 103 30 . . . . . 19 . . 3 8 6 . 40 2 . 1 . Cannon 485 | . . . . . 22 24 4 . . . . . . . . 34 23 19 . 11 3 63 4 22 26 . 18 . 25 8 55 39 85 Launcher 75 | . 1 2 1 . 4 . . 13 . 6 3 . 2 . . . 1 4 . 9 . . . . 4 . 4 . . . 4 4 13 Special 98 | . . . . . . . . . . . . . . . . . 5 . . . . 3 10 38 . 5 6 2 . 1 . 1 27 Kinetic 1030 | . 30 . 12 159 28 26 6 33 53 32 7 . 6 21 103 64 23 19 . 11 3 81 4 22 29 8 24 . 51 10 43 39 83 Thermal 36 | . 16 . . . . . . . . . . . . . . . 5 . . . . . . . . . . . 12 . . 1 2 Explosive 75 | . 1 2 1 . 4 . . 13 . 6 3 . 2 . . . 1 4 . 9 . . . . 4 . 4 . . . 4 4 13 Electromagnetic 15 | . . . . . . . . . . . . . . . . . . . . . . 1 . . . . . . 2 . 12 . . Robot Hit Streak 38 | . 6 . 6 19 4 7 4 8 8 5 3 . 13 3 11 9 5 4 . 7 6 20 7 18 33 38 13 3 11 8 18 9 22 Robot Miss Streak 8 | . 3 . 1 5 3 2 1 6 7 3 2 . 1 7 8 5 2 2 . 2 . 2 1 2 . 1 1 . 3 4 6 7 6 Penetration Max 2 | . . . . . . . . . . . . . . . . . . . . . . 1 . . 1 . 1 . 2 . . . . Secondary Targets 5 | . . . . 2 . . . . . . . . . . 2 1 . . . . . . . . . . . . . . . . . Max Gunslinging Chain 1 | . . . . 1 . . . . . . . . . . 1 1 . . . . . . . . . . . . . . . . . Shots Hit Robots 952 | . 29 . 8 127 19 17 6 27 35 24 6 1 7 13 86 48 17 13 . 11 2 61 12 51 32 11 29 2 46 17 46 41 108 Core Hits 585 | . 12 5 6 51 15 4 2 32 14 23 8 . 8 13 38 18 9 12 . 36 2 25 1 4 26 4 14 . 20 5 28 30 120 Critical Kills 1 | . . . . . . . . . . . . . . . 1 . . . . . . . . . . . . . . . . . . Critical Parts Destroyed 3 | . . . . . . . . 2 . . . . . . . 1 . . . . . . . . . . . . . . . . . Critical Strikes 48 | . 1 . . . 3 3 . 2 . . . . . . 1 4 3 4 . . 1 10 . 3 1 . 1 . 1 . 6 1 3 Burn 2 | . 1 . . . . . . . . . . . . . . . . . . . . . . . . . . . 1 . . . . Destroy 4 | . . . . . . . . 2 . . . . . . 1 1 . . . . . . . . . . . . . . . . . Blast 42 | . . . . . 3 3 . . . . . . . . . 3 3 4 . . 1 10 . 3 1 . 1 . . . 6 1 3 Melee Attacks 119 | . . . 1 15 . . 1 3 . 5 . 1 4 . 19 8 . . . . . . . . . . . . 36 8 3 7 8 Impact 55 | . . . 1 15 . . . 2 . 5 . . 4 . 5 . . . . . . . . . . . . . 23 . . . . Slashing 15 | . . . . . . . . . . . . . . . . . . . . . . . . . . . . . . . . 7 8 Piercing . | . . . . . . . . . . . . . . . . . . . . . . . . . . . . . . . . . . Sneak Attacks 43 | . . . . 1 . . . . . . . 1 . . 14 8 . . . . . . . . . . . . 10 8 . 1 . Combat Hostiles 4 | . . . . . . . . . . . . . . . . . . . . . . . . . . . . . . 4 . . . Follow-up Attacks . | . . . . . . . . . . . . . . . . . . . . . . . . . . . . . . . . . . Damage Inflicted 39345 | . 562 137 236 2172 1195 848 210 1980 603 846 382 . 348 226 1166 1526 1000 1281 . 2198 164 3222 190 832 2546 171 1417 . 1081 342 2777 2263 7424 Guns 7634 | . 428 . 117 2062 58 . 27 403 582 349 100 . 111 226 1166 395 . . . . . 589 . . 82 171 74 . 608 56 . 30 . Cannons 20369 | . . . . . 724 848 183 . . . . . . . . 1109 785 623 . 534 92 2628 190 797 1325 . 668 . 407 281 2393 1739 5043 Explosions 10641 | . 128 137 114 . 413 . . 1577 . 497 282 . 237 . . . 161 658 . 1664 . . . . 1139 . 675 . . . 369 364 2226 Melee 197 | . . . . 67 . . . . . . . . . . . . . . . . . . . . . . . . . . . 130 . Ramming 450 | . 6 . 5 43 . . . . 21 . . . . . . 22 . . . . 72 5 . 35 . . . . 66 5 15 . 155 Kinetic 27468 | . 263 . 117 2062 782 848 210 403 582 349 100 . 111 226 1166 1504 785 623 . 534 92 3217 190 797 1407 171 742 . 884 337 2184 1739 5043 Thermal 380 | . 165 . . . . . . . . . . . . . . . 54 . . . . . . . . . . . 131 . . 30 . Explosive 10641 | . 128 137 114 . 413 . . 1577 . 497 282 . 237 . . . 161 658 . 1664 . . . . 1139 . 675 . . . 369 364 2226 Electromagnetic 209 | . . . . . . . . . . . . . . . . . . . . . . . . . . . . . . . 209 . . Impact 67 | . . . . 67 . . . . . . . . . . . . . . . . . . . . . . . . . . . . . Slashing 130 | . . . . . . . . . . . . . . . . . . . . . . . . . . . . . . . . 130 . Piercing . | . . . . . . . . . . . . . . . . . . . . . . . . . . . . . . . . . . Highest Corruption 20 | . . . . 1 . . . . . . . . . . . . 1 1 1 . . . 2 2 2 2 . . 19 17 20 . 6 Average Corruption 6 | . . . . 1 . . . . . . . . . . . . 1 1 1 . . . 1 2 2 1 . . 13 16 17 . 4 Corruption Purged 7 | . . . . . . . . . . . . . . . . . . . . . . . . . . 2 . . 5 . . . . Corruption Blocked . | . . . . . . . . . . . . . . . . . . . . . . . . . . . . . . . . . . Effects 184 | . . . . 10 . . . . . . . . . . . . 5 19 1 . . . 3 10 9 . . . 39 26 53 . 9 Message Errors 43 | . . . . 3 . . . . . . . . . . . . 1 3 1 . . . . 1 3 . . . 9 5 16 . 1 Matter Fused 39 | . . . . 2 . . . . . . . . . . . . 2 5 . . . . 1 4 1 . . . 9 7 6 . 2 Heat Flow Errors 21 | . . . . . . . . . . . . . . . . . 1 2 . . . . 1 . 1 . . . 6 3 6 . 1 Energy Discharges 17 | . . . . . . . . . . . . . . . . . . 4 . . . . . 1 . . . . 5 1 4 . 2 Parts Rejected 4 | . . . . . . . . . . . . . . . . . . . . . . . . 1 1 . . . . . 1 . 1 Data Loss (minor) 19 | . . . . . . . . . . . . . . . . . . 2 . . . . 1 2 1 . . . 4 1 7 . 1 Data Loss (major) 15 | . . . . 2 . . . . . . . . . . . . . 1 . . . . . 1 2 . . . 4 1 4 . . Misfires 8 | . . . . 1 . . . . . . . . . . . . 1 1 . . . . . . . . . . 1 1 3 . . Alerts 9 | . . . . 2 . . . . . . . . . . . . . 1 . . . . . . . . . . 1 2 3 . . Misdirections 2 | . . . . . . . . . . . . . . . . . . . . . . . . . . . . . . 2 . . . Weapon Failures 7 | . . . . . . . . . . . . . . . . . . . . . . . . . . . . . . 3 3 . 1 Overload Shots . | . . . . . . . . . . . . . . . . . . . . . . . . . . . . . . . . . . Overflow Damage 1131 | . . . . 47 . 19 22 55 . . 17 . 23 . . 16 6 70 . 19 14 122 40 . 92 . 46 . 28 18 189 122 166 Projectiles 666 | . . . . . . 19 22 . . . . . . . . 16 . 66 . . . 122 40 . 28 . 28 . 12 18 189 32 74 Explosions 254 | . . . . . . . . 55 . . 17 . 23 . . . 6 4 . 19 . . . . 64 . 18 . . . . . 48 Melee 211 | . . . . 47 . . . . . . . . . . . . . . . . 14 . . . . . . . 16 . . 90 44 Knockbacks 114 | . . . . . 3 6 . . . . . . . . . 4 4 . . 3 . 7 1 2 . . 2 . 6 . 20 8 48 Impact 3 | . . . . . . . . . . . . . . . . . . . . . . . . . . . . . 2 . . . 1 Kinetic 101 | . . . . . 3 6 . . . . . . . . . 4 4 . . 3 . 7 1 2 . . 2 . 3 . 17 8 41 Secondary 10 | . . . . . . . . . . . . . . . . . . . . . . . . . . . . . 1 . 3 . 6 Self-Inflicted Damage 501 | . . . . . 77 . . 19 . . . . 24 . . . 19 46 . 106 . . . . . . . . . . . . 210 Shots 16 | . . . . . 2 . . 1 . . . . 1 . . . 1 2 . 3 . . . . . . . . . . . . 6 Rammed 30 | . 1 . 2 8 . . . . 1 . . . . . . 2 . . . . . 1 . 2 . . . . 4 1 . . 8 Targets Rammed 39 | . 1 1 3 9 . . . . 2 . . . . . . 2 . . . . 2 1 . 3 . . . . 5 1 1 . 8 Kicked . | . . . . . . . . . . . . . . . . . . . . . . . . . . . . . . . . . . Crushed 9 | . . 1 1 1 . . . . 1 . . . . . . . . . . . 2 . . 1 . . . . 1 . 1 . . Highest Temperature 397 | . 120 . 9 22 14 12 . 18 3 42 . . 30 10 265 192 127 200 . 50 24 207 213 33 275 . 45 . 397 228 262 202 303 Average Temperature 62 | . 36 . 5 9 6 12 . 12 3 20 . . 17 6 68 72 31 35 . 14 13 50 80 16 83 . 11 . 128 85 82 66 49 Received Heat Transfer 2776 | . 66 . 9 303 207 126 54 189 64 68 . . . 36 34 179 122 90 . 97 . 266 . 41 138 9 . . 89 53 79 49 408 Effects 9 | . . . . . . . . . . . . . . . 1 . . . . . . . . . . . . . 3 . 2 . 3 Shutdowns 3 | . . . . . . . . . . . . . . . . . . . . . . . . . . . . . 3 . . . . Energy Bleed 2 | . . . . . . . . . . . . . . . . . . . . . . . . . . . . . . . 2 . . Interference 4 | . . . . . . . . . . . . . . . 1 . . . . . . . . . . . . . . . . . 3 Siege Activations 5 | . . . . . . . . . . . . . . . . . . . . . . . . . 2 . . . 1 1 1 . . Total Turns 105 | . . . . . . . . . . . . . . . . . . . . . . . . . 58 . . . 14 3 30 . . Longest Duration 38 | . . . . . . . . . . . . . . . . . . . . . . . . . 38 . . . 14 3 30 . . Robots Corrupted . | . . . . . . . . . . . . . . . . . . . . . . . . . . . . . . . . . . Combat Hostiles . | . . . . . . . . . . . . . . . . . . . . . . . . . . . . . . . . . . Parts Fried 1 | . . . . 1 . . . . . . . . . . . . . . . . . . . . . . . . . . . . . Impact Corruptions 8 | . . . . 2 . . . . . . . . . . . . . . . . 1 . . . . . . . 2 . . . 3 Robots Melted 1 | . 1 . . . . . . . . . . . . . . . . . . . . . . . . . . . . . . . . Combat Hostiles 1 | . 1 . . . . . . . . . . . . . . . . . . . . . . . . . . . . . . . . Parts Melted 13 | . 1 . . . . 1 . 1 . . 1 . . . 2 2 . . . . . . . . . . 1 . 2 . . 2 . Heat Transferred 1171 | . 495 . . . . . . . . . . . . . . . 400 . . . . . . . . . . . 239 . . 37 . Parts Sabotaged . | . . . . . . . . . . . . . . . . . . . . . . . . . . . . . . . . . . Parts Stolen . | . . . . . . . . . . . . . . . . . . . . . . . . . . . . . . . . . . Parts Stripped . | . . . . . . . . . . . . . . . . . . . . . . . . . . . . . . . . . . Power Chain Reactions . | . . . . . . . . . . . . . . . . . . . . . . . . . . . . . . . . . . Missiles Intercepted . | . . . . . . . . . . . . . . . . . . . . . . . . . . . . . . . . . . Alert | -11 -10 -10 -9 -9 -8 -8 -8 -8 -7 -7 -7 -7 -6 -6 -6 -6 -6 -6 -6 -5 -5 -5 -4 -4 -4 -4 -4 -3 -3 -3 -3 -2 -1 ------- Run | Scr Mat Min Mat Sto Mat Gar Mat Gar Fac Low Low Dat Pro Fac Gar Fac Low Low Zio Pro Fac Gar Fac Ext Cet Arc Hub Res Gar Tes Gar Res Acc Peak Influence 3604 | . 317 126 279 535 627 676 445 1288 682 . . . . 239 1046 796 . . . . 249 1953 1361 1390 1192 476 606 339 846 1221 2373 2431 3604 Initial 1458 | . . . 44 59 196 407 329 289 676 . . . . . 43 548 . . . . 163 174 1024 426 694 396 6 318 254 475 765 1334 1458 Average 703 | . 112 36 115 292 367 504 385 839 497 . . . . 122 581 433 . . . . 185 1199 1012 927 971 223 284 323 543 853 1813 1769 2194 Maximum Alert Level 5 | . 1 . 1 2 2 2 2 4 2 . . . . 1 3 3 . . . . 1 5 4 4 4 2 2 1 3 4 5 5 5 Low Security (%) 22 | 100 76 100 94 36 17 . . . . . . . . 85 21 . . . . . 74 2 . . . 58 44 . . . . . . Level 1 16 | . 23 . 5 16 41 2 68 16 18 . . . . 14 10 34 . . . . 25 19 . . . 38 20 100 22 . . . . Level 2 27 | . . . . 46 40 97 31 19 81 . . . . . 32 63 . . . . . . . 42 10 2 35 . 61 37 . . . Level 3 12 | . . . . . . . . 44 . . . . . . 35 1 . . . . . 14 86 10 63 . . . 15 40 10 . . Level 4 10 | . . . . . . . . 19 . . . . . . . . . . . . . 35 13 47 26 . . . . 21 30 31 11 Level 5 7 | . . . . . . . . . . . . . . . . . . . . . . 27 . . . . . . . . 59 40 27 High Security 3 | . . . . . . . . . . . . . . . . . . . . . . . . . . . . . . . . 28 61 Max Security . | . . . . . . . . . . . . . . . . . . . . . . . . . . . . . . . . . . Squads Dispatched 98 | . 3 . 1 3 7 . 3 . 2 . . . . 5 . 8 . . . 1 2 . 5 5 . . 6 1 . 4 . 13 29 Investigation 12 | . 1 . 1 . 2 . 1 . 1 . . . . . . 1 . . . . 2 . . 2 . . . 1 . . . . . Extermination 7 | . . . . . . . . . 1 . . . . 3 . 2 . . . . . . 1 . . . . . . . . . . Reinforcement 27 | . 2 . . 2 2 . . . . . . . . 2 . 5 . . . . . . 2 . . . 6 . . 2 . 2 2 Assault 44 | . . . . . . . . . . . . . . . . . . . . 1 . . 2 3 . . . . . 2 . 11 25 Garrison 8 | . . . . 1 3 . 2 . . . . . . . . . . . . . . . . . . . . . . . . . 2 Intercept . | . . . . . . . . . . . . . . . . . . . . . . . . . . . . . . . . . . Searches Triggered . | . . . . . . . . . . . . . . . . . . . . . . . . . . . . . . . . . . Data Miner Redirects 10 | . . . . . . . . . . . . . . . . 1 . . . . . . 1 3 . . . . . 1 . 2 2 Construction Impeded 5 | . . . . . 1 . . . . . . . . . . . . . . . . . 1 . . . 1 . . 1 . . 1 Haulers Reinforced 2 | . . . . . . . . . . . . . . . . . . . . . . . . . . . 1 . . . . . 1 Active Scanning Responses . | . . . . . . . . . . . . . . . . . . . . . . . . . . . . . . . . . . Cargo Convoy Interrupts 1 | . . . . . . . . . . . . . . . . 1 . . . . . . . . . . . . . . . . . Alert ID Control Effect 5 | . . . . . . . . . . . . . . . . . . . . . . . . . . . 3 . . . 1 . 1 Stealth | -11 -10 -10 -9 -9 -8 -8 -8 -8 -7 -7 -7 -7 -6 -6 -6 -6 -6 -6 -6 -5 -5 -5 -4 -4 -4 -4 -4 -3 -3 -3 -3 -2 -1 --------- Run | Scr Mat Min Mat Sto Mat Gar Mat Gar Fac Low Low Dat Pro Fac Gar Fac Low Low Zio Pro Fac Gar Fac Ext Cet Arc Hub Res Gar Tes Gar Res Acc Distress Signals 22 | . . . 2 3 4 . . . . . . . . . . 2 . . . . . . 1 4 2 . 3 . . . . 1 . Communications Jammed 269 | . . . . . . . . . . . . . . . . . . . . . . . . . . . . . . . . 21 248 Distress Signals 269 | . . . . . . . . . . . . . . . . . . . . . . . . . . . . . . . . 21 248 Times Spotted 630 | . 16 4 6 34 23 10 3 27 9 12 4 . 6 7 25 28 14 9 . 25 1 45 12 46 18 12 22 . 20 17 36 37 102 Peak Tracking Total 17 | . 4 2 3 6 4 3 1 5 2 5 4 . 4 2 5 4 4 4 . 9 1 14 6 7 7 2 9 . 5 6 8 13 17 Tactical Retreats 10 | . . . . 1 . . . . . . . . . . . . . . . . . . 1 3 . . . . . . 2 . 3 Traps | -11 -10 -10 -9 -9 -8 -8 -8 -8 -7 -7 -7 -7 -6 -6 -6 -6 -6 -6 -6 -5 -5 -5 -4 -4 -4 -4 -4 -3 -3 -3 -3 -2 -1 ------- Run | Scr Mat Min Mat Sto Mat Gar Mat Gar Fac Low Low Dat Pro Fac Gar Fac Low Low Zio Pro Fac Gar Fac Ext Cet Arc Hub Res Gar Tes Gar Res Acc Traps Triggered 16 | . 1 . 1 1 1 1 . 1 . . . . . . 2 2 . . . . . . . 2 . . . . 3 . 1 . . Indirectly . | . . . . . . . . . . . . . . . . . . . . . . . . . . . . . . . . . . Trap Hack Attempts 20 | . . . . . . . . . . . . . . . . 20 . . . . . . . . . . . . . . . . . Triggered . | . . . . . . . . . . . . . . . . . . . . . . . . . . . . . . . . . . Disarmed 4 | . . . . 4 . . . . . . . . . . . . . . . . . . . . . . . . . . . . . Reprogrammed 9 | . . . . 3 . . . . . . . . . . . 2 . . . . . . . . . . 4 . . . . . . Reused . | . . . . . . . . . . . . . . . . . . . . . . . . . . . . . . . . . . Traps Extracted . | . . . . . . . . . . . . . . . . . . . . . . . . . . . . . . . . . . Installed . | . . . . . . . . . . . . . . . . . . . . . . . . . . . . . . . . . . Triggered 3 | . 1 . . . . . . . . . . . . . . 1 . 1 . . . . . . . . . . . . . . . Machines | -11 -10 -10 -9 -9 -8 -8 -8 -8 -7 -7 -7 -7 -6 -6 -6 -6 -6 -6 -6 -5 -5 -5 -4 -4 -4 -4 -4 -3 -3 -3 -3 -2 -1 ---------- Run | Scr Mat Min Mat Sto Mat Gar Mat Gar Fac Low Low Dat Pro Fac Gar Fac Low Low Zio Pro Fac Gar Fac Ext Cet Arc Hub Res Gar Tes Gar Res Acc Machines Disabled 63 | . 1 . . 1 1 1 1 2 . 2 . . . . 4 4 1 . . 2 2 5 4 4 1 3 8 . 2 3 8 1 2 Max in Single Turn 1 | . . . . . 1 1 1 1 . . . . . . 1 1 1 . . 1 . 1 . . . . 1 . 1 . 1 . 1 Garrison Access 4 | . . . . . . . . . 1 . . . . . . 1 . . . . . . . . . . . . . . . . 2 Garrison Relay 12 | . . . . . . 1 . 1 . . . . . . 4 . . . . . . 3 . . . . . . 2 . 1 . . Machines Sabotaged . | . . . . . . . . . . . . . . . . . . . . . . . . . . . . . . . . . . Garrisons Compromised 1 | . . . . . . . . . . . . . . . . 1 . . . . . . . . . . . . . . . . . Overloaded Fab Kills . | . . . . . . . . . . . . . . . . . . . . . . . . . . . . . . . . . . Hacking | -11 -10 -10 -9 -9 -8 -8 -8 -8 -7 -7 -7 -7 -6 -6 -6 -6 -6 -6 -6 -5 -5 -5 -4 -4 -4 -4 -4 -3 -3 -3 -3 -2 -1 --------- Run | Scr Mat Min Mat Sto Mat Gar Mat Gar Fac Low Low Dat Pro Fac Gar Fac Low Low Zio Pro Fac Gar Fac Ext Cet Arc Hub Res Gar Tes Gar Res Acc Machines Accessed 78 | . 7 . 3 10 3 1 1 2 7 1 . 3 . 3 1 10 . . . . 3 1 5 2 1 . 3 2 1 2 1 2 3 Terminals 53 | . 5 . 3 9 2 1 . 2 3 1 . . . 1 1 7 . . . . 1 1 3 2 1 . 3 1 1 1 1 2 1 Fabricators 4 | . . . . . . . . . 1 . . . . . . 1 . . . . 1 . . . . . . . . . . . 1 Repair Stations 5 | . 1 . . 1 . . . . 1 . . . . 1 . . . . . . . . 1 . . . . . . . . . . Recycling Units 4 | . 1 . . . . . . . 1 . . . . . . 1 . . . . . . 1 . . . . . . . . . . Scanalyzers . | . . . . . . . . . . . . . . . . . . . . . . . . . . . . . . . . . . Garrison Access 9 | . . . . . 1 . 1 . 1 . . . . 1 . 1 . . . . 1 . . . . . . 1 . 1 . . 1 Total Hacks 213 | . 19 . 9 24 11 2 2 4 17 5 . 23 . 11 2 25 . . . . 10 4 14 4 2 . 7 5 1 3 2 3 4 Successful 117 | . 9 . 4 14 5 . 2 2 11 5 . 23 . 5 1 13 . . . . 4 2 5 1 . . 3 2 1 1 1 1 2 Failed 96 | . 10 . 5 10 6 2 . 2 6 . . . . 6 1 12 . . . . 6 2 9 3 2 . 4 3 . 2 1 2 2 Catastrophic 21 | . 2 . 1 2 1 . . 1 1 . . . . 2 . 2 . . . . 2 . 1 1 . . . . . 2 . 1 2 Database Lockouts . | . . . . . . . . . . . . . . . . . . . . . . . . . . . . . . . . . . Manual 76 | . 11 . 6 10 5 . 1 . 5 . . . . 2 . 15 . . . . 4 2 4 2 . . 2 4 . 1 . 1 1 Terminals 133 | . 14 . 9 22 7 2 . 4 9 5 . . . 3 2 18 . . . . 3 4 8 4 2 . 7 2 1 1 2 3 1 Fabricators 7 | . . . . . . . . . 2 . . . . . . 2 . . . . 2 . . . . . . . . . . . 1 Repair Stations 13 | . 2 . . 2 . . . . 2 . . . . 5 . . . . . . . . 2 . . . . . . . . . . Recycling Units 12 | . 3 . . . . . . . 2 . . . . . . 3 . . . . . . 4 . . . . . . . . . . Scanalyzers . | . . . . . . . . . . . . . . . . . . . . . . . . . . . . . . . . . . Garrison Access 25 | . . . . . 4 . 2 . 2 . . . . 3 . 2 . . . . 5 . . . . . . 3 . 2 . . 2 Terminal Hacks 72 | . 6 . 3 10 2 . . 2 3 5 . 23 . 1 1 6 . . . . 1 1 2 . . . 3 . 1 . 1 1 . Record 11 | . . . . . . . . . . 5 . 6 . . . . . . . . . . . . . . . . . . . . . Part Schematic 12 | . 1 . . . . . . . . . . 10 . . . . . . . . 1 . . . . . . . . . . . . Robot Schematic 5 | . . . . . . . . . 1 . . 4 . . . . . . . . . . . . . . . . . . . . . Robot Analysis 4 | . 2 . 2 . . . . . . . . . . . . . . . . . . . . . . . . . . . . . . Prototype ID Bank 8 | . 3 . . 2 . . . . . . . 3 . . . . . . . . . . . . . . . . . . . . . Open Door 5 | . . . . 3 . . . 1 . . . . . . . . . . . . . . 1 . . . . . . . . . . Level Access Points 1 | . . . . . . . . . . . . . . . . . . . . . . . . . . . . . . . . 1 . Branch Access Points 3 | . . . 1 . . . . . 1 . . . . . . 1 . . . . . . . . . . . . . . . . . Emergency Access Points 3 | . . . . . . . . 1 . . . . . . . . . . . . . 1 . . . . . . 1 . . . . Terminal Index 1 | . . . . . . . . . . . . . . . . . . . . . . . . . . . 1 . . . . . . Unreport Threat 5 | . . . . 1 1 . . . 1 . . . . . . 2 . . . . . . . . . . . . . . . . . Locate Traps 5 | . . . . 1 . . . . . . . . . 1 . 2 . . . . . . . . . . 1 . . . . . . Disarm Traps 1 | . . . . 1 . . . . . . . . . . . . . . . . . . . . . . . . . . . . . Reprogram Traps 2 | . . . . 1 . . . . . . . . . . . . . . . . . . . . . . 1 . . . . . . Zone Layout 4 | . . . . 1 1 . . . . . . . . . . 1 . . . . . . 1 . . . . . . . . . . Patrol Navigation 2 | . . . . . . . . . . . . . . . 1 . . . . . . . . . . . . . . . 1 . . Fabricator Hacks 3 | . . . . . . . . . 2 . . . . . . . . . . . 1 . . . . . . . . . . . . Network Status 1 | . . . . . . . . . . . . . . . . . . . . . 1 . . . . . . . . . . . . Load Schematic 1 | . . . . . . . . . 1 . . . . . . . . . . . . . . . . . . . . . . . . Build 1 | . . . . . . . . . 1 . . . . . . . . . . . . . . . . . . . . . . . . Repair Station Hacks 8 | . 1 . . 2 . . . . 2 . . . . 3 . . . . . . . . . . . . . . . . . . . Scan Component 5 | . 1 . . 1 . . . . 1 . . . . 2 . . . . . . . . . . . . . . . . . . . Repair 3 | . . . . 1 . . . . 1 . . . . 1 . . . . . . . . . . . . . . . . . . . Recycling Unit Hacks 4 | . 1 . . . . . . . 1 . . . . . . 1 . . . . . . 1 . . . . . . . . . . Retrieve Components 4 | . 1 . . . . . . . 1 . . . . . . 1 . . . . . . 1 . . . . . . . . . . Scanalyzer . | . . . . . . . . . . . . . . . . . . . . . . . . . . . . . . . . . . Garrison Access Hacks 12 | . . . . . 1 . 1 . 2 . . . . 1 . 2 . . . . 1 . . . . . . 1 . 1 . . 2 Unlock Access 6 | . . . . . 1 . 1 . . . . . . 1 . . . . . . 1 . . . . . . 1 . 1 . . . Seal Access 3 | . . . . . . . . . 1 . . . . . . 1 . . . . . . . . . . . . . . . . 1 Coupler Status 3 | . . . . . . . . . 1 . . . . . . 1 . . . . . . . . . . . . . . . . 1 Unauthorized Hacks 18 | . 1 . 1 2 2 . 1 . 1 . . . . . . 4 . . . . 1 1 2 1 . . . 1 . . . . . Terminals 10 | . . . 1 2 1 . . . . . . . . . . 2 . . . . . 1 1 1 . . . 1 . . . . . Botnet 10 | . . . 1 2 1 . . . . . . . . . . 2 . . . . . 1 1 1 . . . 1 . . . . . Fabricators 1 | . . . . . . . . . . . . . . . . 1 . . . . . . . . . . . . . . . . . Liberate 1 | . . . . . . . . . . . . . . . . 1 . . . . . . . . . . . . . . . . . Repair Stations . | . . . . . . . . . . . . . . . . . . . . . . . . . . . . . . . . . . Recycling Units 4 | . 1 . . . . . . . 1 . . . . . . 1 . . . . . . 1 . . . . . . . . . . Reject 1 | . . . . . . . . . . . . . . . . . . . . . . . 1 . . . . . . . . . . Mask 2 | . . . . . . . . . 1 . . . . . . 1 . . . . . . . . . . . . . . . . . Tunnel 1 | . 1 . . . . . . . . . . . . . . . . . . . . . . . . . . . . . . . . Scanalyzers . | . . . . . . . . . . . . . . . . . . . . . . . . . . . . . . . . . . Garrison Access 3 | . . . . . 1 . 1 . . . . . . . . . . . . . 1 . . . . . . . . . . . . Reprogram 3 | . . . . . 1 . 1 . . . . . . . . . . . . . 1 . . . . . . . . . . . . Data Cores Recovered . | . . . . . . . . . . . . . . . . . . . . . . . . . . . . . . . . . . Used . | . . . . . . . . . . . . . . . . . . . . . . . . . . . . . . . . . . Hacking Detections 66 | . 6 . 3 7 3 1 1 2 5 1 . . . 3 1 9 . . . . 3 1 3 2 1 . 3 2 1 2 1 2 3 Full Trace Events 8 | . . . . 1 1 . . 1 1 1 . . . . . . . . . . 1 . . 1 . . . 1 . . . . . Feedback Events . | . . . . . . . . . . . . . . . . . . . . . . . . . . . . . . . . . . Feedback Blocked . | . . . . . . . . . . . . . . . . . . . . . . . . . . . . . . . . . . Robot Schematics Acquired 5 | . . . . . . . . . 1 . . 4 . . . . . . . . . . . . . . . . . . . . . Robots Built 1 | . . . . . . . . . 1 . . . . . . . . . . . . . . . . . . . . . . . . Authchips 1 | . . . . . . . . . 1 . . . . . . . . . . . . . . . . . . . . . . . . Time 38 | . . . . . . . . . 38 . . . . . . . . . . . . . . . . . . . . . . . . Total Robot Build Rating 3 | . . . . . . . . . 3 . . . . . . . . . . . . . . . . . . . . . . . . Part Schematics Acquired 17 | . 1 . . . . . . . . . . 10 . . . . . . . . 1 . . . . . . . . 5 . . . Parts Built . | . . . . . . . . . . . . . . . . . . . . . . . . . . . . . . . . . . Authchips . | . . . . . . . . . . . . . . . . . . . . . . . . . . . . . . . . . . Time . | . . . . . . . . . . . . . . . . . . . . . . . . . . . . . . . . . . Total Part Build Rating . | . . . . . . . . . . . . . . . . . . . . . . . . . . . . . . . . . . Parts Repaired 3 | . . . . 1 . . . . 1 . . . . 1 . . . . . . . . . . . . . . . . . . . Time 100 | . . . . 26 . . . . 38 . . . . 36 . . . . . . . . . . . . . . . . . . . Parts Recycled . | . . . . . . . . . . . . . . . . . . . . . . . . . . . . . . . . . . Recycled Matter . | . . . . . . . . . . . . . . . . . . . . . . . . . . . . . . . . . . Retrieved Matter . | . . . . . . . . . . . . . . . . . . . . . . . . . . . . . . . . . . Retrieved Components 15 | . 9 . . . . . . . 3 . . . . . . 1 . . . . . . 2 . . . . . . . . . . Parts Scanalyzed . | . . . . . . . . . . . . . . . . . . . . . . . . . . . . . . . . . . Part Schematics Acquired . | . . . . . . . . . . . . . . . . . . . . . . . . . . . . . . . . . . Parts Damaged . | . . . . . . . . . . . . . . . . . . . . . . . . . . . . . . . . . . Bothacking | -11 -10 -10 -9 -9 -8 -8 -8 -8 -7 -7 -7 -7 -6 -6 -6 -6 -6 -6 -6 -5 -5 -5 -4 -4 -4 -4 -4 -3 -3 -3 -3 -2 -1 ------------ Run | Scr Mat Min Mat Sto Mat Gar Mat Gar Fac Low Low Dat Pro Fac Gar Fac Low Low Zio Pro Fac Gar Fac Ext Cet Arc Hub Res Gar Tes Gar Res Acc Used RIF Installer 7 | . . . . . . 1 . 1 . . . . . . 1 . . . . . . 1 . . . . . . 1 . 2 . . Hotswap 1 | . . . . . . . . . . . . . . . . . . . . . . . . . . . . . 1 . . . . Signal Jammer 1 | . . . . . . . . . . . . . . . . . . . . . . . . . . . . . . . 1 . . Zone Cloak 2 | . . . . . . . . . . . . . . . 1 . . . . . . 1 . . . . . . . . . . . Alert ID Control 1 | . . . . . . . . 1 . . . . . . . . . . . . . . . . . . . . . . . . . Autoassimilate 1 | . . . . . . . . . . . . . . . . . . . . . . . . . . . . . . . 1 . . Robots Hacked 61 | . . . . . . . 1 1 . . . 1 . . . 6 . . . . . 1 3 6 . 4 5 1 3 3 3 1 22 Non-combat 24 | . . . . . . . . . . . . . . . . 6 . . . . . . 1 1 . 1 . 1 . 1 . . 13 Combat 37 | . . . . . . . 1 1 . . . 1 . . . . . . . . . 1 2 5 . 3 5 . 3 2 3 1 9 Autoassimilated 1 | . . . . . . . . . . . . . . . . . . . . . . . . . . . . . . . . . 1 Robot Hacks Applied 72 | . . . . . . . 1 1 . . . 1 . . . 8 . . . . . 1 9 6 . 4 6 2 3 5 3 1 21 parse_system 9 | . . . . . . . . . . . . 1 . . . 1 . . . . . 1 1 1 . . 1 . . 1 2 . . drop_inventory 3 | . . . . . . . . . . . . . . . . 2 . . . . . . . . . . . . . . . . 1 ignore_parts 3 | . . . . . . . . . . . . . . . . 2 . . . . . . . . . . . . . . . . 1 deconstruct_bot 1 | . . . . . . . . . . . . . . . . . . . . . . . . . . . . . . . . . 1 purge_threat 9 | . . . . . . . . . . . . . . . . 2 . . . . . . 6 . . 1 . . . . . . . reprogram_traps 1 | . . . . . . . . . . . . . . . . . . . . . . . 1 . . . . . . . . . . block_reporting 1 | . . . . . . . . . . . . . . . . . . . . . . . . . . . . 1 . . . . . disable_shields 1 | . . . . . . . . . . . . . . . . . . . . . . . . . . . . . . . . . 1 redirect_shields 1 | . . . . . . . . . . . . . . . . . . . . . . . . . . . . . . . . . 1 disable_scanner 1 | . . . . . . . . . . . . . . . . . . . . . . . . . . . . . . 1 . . . locate_prototypes 1 | . . . . . . . . . . . . . . . . . . . . . . . . . . . . . . 1 . . . report_prototypes 1 | . . . . . . . . . . . . . . . . . . . . . . . . . . . . . . 1 . . . disrupt_area 1 | . . . . . . . . . . . . . . . . . . . . . . . . . . . . . . . . . 1 spike_heat 1 | . . . . . . . . . . . . . . . . . . . . . . . . . . . . . 1 . . . . amplify_resonance 3 | . . . . . . . . . . . . . . . . 1 . . . . . . . . . . . . . . . . 2 overwrite_iff 8 | . . . . . . . . . . . . . . . . . . . . . . . . 1 . . 3 . 1 . . . 3 streamctrl_low 3 | . . . . . . . . . . . . . . . . . . . . . . . . . . . . 1 . 1 . . 1 streamctrl_high 1 | . . . . . . . . . . . . . . . . . . . . . . . . . . . 1 . . . . . . formatsys_low 3 | . . . . . . . . . . . . . . . . . . . . . . . . . . . . . . . . . 3 formatsys_high 19 | . . . . . . . 1 1 . . . . . . . . . . . . . . 1 4 . 3 1 . 1 . 1 1 5 formatsys_deep 1 | . . . . . . . . . . . . . . . . . . . . . . . . . . . . . . . . . 1 Relay Couplers Released 63 | . . . . . . 4 . 5 . . . . . . 21 4 . . . . . 13 . . . . . . 10 . 3 . 3 Machine Destruction 56 | . . . . . . 4 . 5 . . . . . . 18 . . . . . . 13 . . . . . . 10 . 3 . 3 Programmers 7 | . . . . . . . . . . . . . . . 3 4 . . . . . . . . . . . . . . . . . Attached 21 | . . . . . . . 1 . . . . . . . . 2 . . . . . . 3 3 . 2 2 . 1 1 1 2 3 Fabnet Peak Effective % . | . . . . . . . . . . . . . . . . . . . . . . . . . . . . . . . . . . Robots Rewired 29 | . . . . . . . . . . . . . . . 3 . 3 . . 2 . 5 . 9 . . . . 6 1 . . . Allies Hacked 2 | . . . . . . . . . . . . . . . . . . . . . . . 1 . . . . . . . . . 1 Hacks Repelled . | . . . . . . . . . . . . . . . . . . . . . . . . . . . . . . . . . . Allies | -11 -10 -10 -9 -9 -8 -8 -8 -8 -7 -7 -7 -7 -6 -6 -6 -6 -6 -6 -6 -5 -5 -5 -4 -4 -4 -4 -4 -3 -3 -3 -3 -2 -1 -------- Run | Scr Mat Min Mat Sto Mat Gar Mat Gar Fac Low Low Dat Pro Fac Gar Fac Low Low Zio Pro Fac Gar Fac Ext Cet Arc Hub Res Gar Tes Gar Res Acc Total Allies 87 | . 1 . . 10 1 . 4 3 1 . . . 1 . 3 . 3 . . 2 2 5 1 15 . 3 5 1 8 2 1 1 14 Largest Group 11 | . 1 1 1 11 11 3 5 5 2 2 2 2 3 3 6 2 4 4 1 3 4 4 4 8 3 5 8 3 8 3 2 2 6 Highest-Rated Group 560 | . 63 63 68 161 163 94 105 157 106 100 100 100 197 213 304 143 194 194 123 202 255 420 302 560 272 421 529 282 481 385 269 386 524 Highest-Rated Ally 253 | . 63 63 68 73 75 74 74 74 83 83 83 83 96 100 110 126 125 125 123 125 130 147 148 168 171 171 171 179 199 207 217 238 253 Total Orders 94 | . . . . . . . . . 2 9 4 . 4 15 15 10 2 . . . 2 . . . 4 2 2 . . 6 1 8 8 STAY 24 | . . . . . . . . . . 4 2 . . 3 4 3 1 . . . 1 . . . 2 1 1 . . 1 . 1 . ROAM 2 | . . . . . . . . . . 1 . . . . . . . . . . . . . . . . . . . . . 1 . FOLLOW 25 | . . . . . . . . . . 1 2 . 1 5 4 4 1 . . . 1 . . . 2 1 1 . . . . 2 . AID 31 | . . . . . . . . . 2 3 . . 3 7 7 3 . . . . . . . . . . . . . 2 . . 4 DROP 1 | . . . . . . . . . . . . . . . . . . . . . . . . . . . . . . . . . 1 EXPLORE 9 | . . . . . . . . . . . . . . . . . . . . . . . . . . . . . . 2 1 4 2 RETURN 2 | . . . . . . . . . . . . . . . . . . . . . . . . . . . . . . 1 . . 1 Ally Attacks 1268 | . 22 2 2 33 57 33 6 89 15 24 4 . 9 26 60 35 15 16 . 28 9 69 33 184 30 8 71 1 58 32 54 133 110 Total Damage 66793 | . 260 43 83 698 982 542 97 1270 405 790 151 . 215 1195 2206 2093 1369 1010 . 1271 239 5520 2602 9479 1463 884 3206 28 2750 5109 7611 5709 7513 Kills 378 | . 7 . 2 11 13 7 2 16 3 7 1 . 3 8 18 18 11 3 . 10 . 30 16 40 7 2 19 . 12 13 28 25 46 Allies Corrupted 3 | . . . . . . . . . . . . . . . . . . . . . . . . . . . 1 . . 1 . . 1 Allies Melted . | . . . . . . . . . . . . . . . . . . . . . . . . . . . . . . . . . . Intel | -11 -10 -10 -9 -9 -8 -8 -8 -8 -7 -7 -7 -7 -6 -6 -6 -6 -6 -6 -6 -5 -5 -5 -4 -4 -4 -4 -4 -3 -3 -3 -3 -2 -1 ------- Run | Scr Mat Min Mat Sto Mat Gar Mat Gar Fac Low Low Dat Pro Fac Gar Fac Low Low Zio Pro Fac Gar Fac Ext Cet Arc Hub Res Gar Tes Gar Res Acc Robot Analysis Total 4 | . 2 . 2 . . . . . . . . . . . . . . . . . . . . . . . . . . . . . . Derelict Logs Recovered 5 | . . . . . . . . . . 1 . . 1 . . . 1 . . 2 . . . . . . . . . . . . . Drone Launches 8 | . . . . . . . . . . . . . . . . . . . . . . . . . . . . . . 2 1 3 2 Drone Recoveries 8 | . . . . . . . . . . . . . . . . . . . . . . . . . . . . . . 2 1 3 2 Exploration | -11 -10 -10 -9 -9 -8 -8 -8 -8 -7 -7 -7 -7 -6 -6 -6 -6 -6 -6 -6 -5 -5 -5 -4 -4 -4 -4 -4 -3 -3 -3 -3 -2 -1 ------------- Run | Scr Mat Min Mat Sto Mat Gar Mat Gar Fac Low Low Dat Pro Fac Gar Fac Low Low Zio Pro Fac Gar Fac Ext Cet Arc Hub Res Gar Tes Gar Res Acc Turns Passed 38305 | 11 1644 359 608 1840 259 487 322 908 1104 2253 1443 144 931 822 1786 1930 3186 2125 4999 1231 218 1665 620 979 450 973 309 134 1279 455 1100 748 983 Spaces Moved 14304 | 5 496 219 317 795 79 223 147 488 570 1248 868 88 528 385 579 664 1201 821 522 462 97 707 259 348 144 107 106 71 412 164 510 358 316 Core 195 | . . . . . . . . . . . . . . . . . . . 180 . . . . . . 15 . . . . . . . Treads 14109 | 5 496 219 317 795 79 223 147 488 570 1248 868 88 528 385 579 664 1201 821 342 462 97 707 259 348 144 92 106 71 412 164 510 358 316 Legs . | . . . . . . . . . . . . . . . . . . . . . . . . . . . . . . . . . . Wheels . | . . . . . . . . . . . . . . . . . . . . . . . . . . . . . . . . . . Hover . | . . . . . . . . . . . . . . . . . . . . . . . . . . . . . . . . . . Flight . | . . . . . . . . . . . . . . . . . . . . . . . . . . . . . . . . . . Fastest Speed 160 | 160 160 160 160 160 160 160 160 160 160 160 160 160 160 160 160 240 250 250 250 250 165 162 162 160 160 160 160 160 160 240 160 160 163 Average Speed 224 | 160 194 160 160 160 160 160 160 160 160 160 160 160 160 160 234 245 250 250 956 250 165 175 214 211 233 734 172 160 232 240 164 160 182 Slowest Speed 3850 | 160 240 160 160 160 160 160 160 160 160 160 160 160 160 160 240 250 250 250 2300 250 165 245 242 242 240 3850 240 160 240 240 240 163 243 Overloaded Moves . | . . . . . . . . . . . . . . . . . . . . . . . . . . . . . . . . . . Propulsion Burnouts . | . . . . . . . . . . . . . . . . . . . . . . . . . . . . . . . . . . Robots Hopped . | . . . . . . . . . . . . . . . . . . . . . . . . . . . . . . . . . . Cave-ins Triggered 5 | . . . . . . . . . . . . . . . . . . . . . . . . . . . . . 5 . . . . Exploration Rate (%) 44 | 2 53 60 28 88 14 37 15 53 14 97 84 75 75 11 49 24 99 86 13 71 4 83 8 57 60 84 22 2 38 33 56 16 13 Regions Visited 33 Branch Regions 15 Pre-discovered Areas 3 | . 1 . . . . . . . . . . 1 . . . . . . . 1 . . . . . . . . . . . . . Known Exits Taken 13 | . . . 1 . 1 . 1 . 1 1 . . 1 1 . 1 . . . 1 1 . . . . . . 1 . 1 . 1 . Unknown Exits Taken 14 | 1 1 1 . 1 . . . . . . 1 1 . . . . 1 1 1 . . . 1 1 1 1 1 . . . . . . Scrap Searched 9 | . . 1 . . . . . . . 3 . . 2 . . . 2 1 . . . . . . . . . . . . . . . Spaces Dug 143 | . . . 1 2 . . . 2 . 4 . . 3 . 3 . 21 2 . 21 2 8 . . . . 1 . 25 . . 6 42 Terrain Destroyed 818 | . 4 15 14 2 54 10 1 40 . 29 30 . 14 . 3 9 33 63 . 114 2 26 2 9 38 . 29 . 33 2 20 69 153 Melee 45 | . . . 1 2 . . . 2 . 4 . . 3 . 2 . . . . . . . . . . . . . 19 . . 6 6 Projectile 166 | . . . . . 12 10 1 . . . . . . . 1 9 12 11 . 1 2 25 2 9 . . 5 . 14 2 8 17 25 AOE 606 | . 4 15 13 . 42 . . 38 . 25 30 . 11 . . . 21 52 . 113 . . . . 38 . 24 . . . 12 46 122 Terrain Rammed . | . . . . . . . . . . . . . . . . . . . . . . . . . . . . . . . . . . Walls Destroyed . | . . . . . . . . . . . . . . . . . . . . . . . . . . . . . . . . . . Machines Disabled . | . . . . . . . . . . . . . . . . . . . . . . . . . . . . . . . . . . Actions | -11 -10 -10 -9 -9 -8 -8 -8 -8 -7 -7 -7 -7 -6 -6 -6 -6 -6 -6 -6 -5 -5 -5 -4 -4 -4 -4 -4 -3 -3 -3 -3 -2 -1 --------- Run | Scr Mat Min Mat Sto Mat Gar Mat Gar Fac Low Low Dat Pro Fac Gar Fac Low Low Zio Pro Fac Gar Fac Ext Cet Arc Hub Res Gar Tes Gar Res Acc Total 19147 | 7 1136 224 404 1189 171 317 225 573 720 1459 910 90 597 576 926 906 1353 871 527 516 148 1025 316 544 211 287 197 91 632 215 713 475 596 Wait 2963 | . 583 1 60 256 55 49 61 27 106 166 22 . 54 169 232 119 42 24 2 7 33 171 29 118 21 153 45 17 87 24 103 39 88 Move 14270 | 4 495 218 316 794 78 222 146 487 569 1247 867 87 527 385 578 663 1200 820 521 461 96 706 258 347 143 106 105 71 407 164 509 357 316 Hop . | . . . . . . . . . . . . . . . . . . . . . . . . . . . . . . . . . . Pick Up 139 | . 12 . 5 9 . 6 2 5 4 . 1 . 1 2 16 6 5 1 . 2 2 11 2 . 9 4 4 . 14 . 8 5 3 Fast Attach 95 | . 5 . 1 4 1 2 2 1 5 6 3 . . 5 1 6 2 1 2 . 2 8 2 4 1 1 . . 10 2 6 6 6 Attach 73 | . . . 2 4 3 3 2 5 4 . . . . 1 . 1 1 1 . 1 2 3 4 2 3 2 8 1 7 . 3 3 7 Detach 42 | . 2 . 1 1 2 1 . . 3 . 1 . . . . 2 . 1 . . 1 1 1 2 . 1 2 . 7 . 3 3 7 Swap 164 | 3 4 2 5 7 2 3 2 8 1 11 5 2 6 1 15 17 7 . . 2 4 6 3 1 3 3 4 . 5 3 8 5 16 Drop 166 | . 10 . 3 11 2 5 3 9 5 6 3 . 1 6 8 18 7 1 2 2 3 17 2 5 1 4 1 . 9 3 12 6 1 Fire 929 | . 24 2 7 79 28 26 5 27 21 18 8 . 4 7 52 44 28 22 . 20 3 85 14 60 30 13 28 2 36 10 56 44 126 Melee 119 | . . . 1 15 . . 1 3 . 5 . 1 4 . 19 8 . . . . . . . . . . . . 36 8 3 7 8 Ram . | . . . . . . . . . . . . . . . . . . . . . . . . . . . . . . . . . . Kick . | . . . . . . . . . . . . . . . . . . . . . . . . . . . . . . . . . . Crush 39 | . 1 1 3 9 . . . . 2 . . . . . . 2 . . . . 2 1 . 3 . . . . 5 1 1 . 8 Escape Stasis 20 | . . . . . . . . . . . . . . . 4 . . . . . . . . 2 . . . . 8 . . . 6 Rewire 108 | . . . . . . . 1 1 . . . . . . 1 . 61 . . 21 . 16 1 . . . . . 1 . 1 . 4 Trap 20 | . . . . . . . . . . . . . . . . 20 . . . . . . . . . . . . . . . . . Miscellaneous . | . . . . . . . . . . . . . . . . . . . . . . . . . . . . . . . . . . Route ------- -11/Scrapyard -10/Materials -10/Mines (discovered 2 exits: *Mat x2) -9/Materials (discovered 3 exits: *Min / *Sto x2) -9/Storage -8/Materials -8/Garrison (discovered 2 exits: *Mat x2) -8/Materials -8/Garrison -7/Factory (discovered 3 exits: *Fac / *Low x2) -7/Lower Caves -7/Lower Caves (discovered 2 exits: *Fac / *Dat) -7/Data Miner -6/Proximity Caves -6/Factory (discovered 5 exits: Fac x2 / Low x2 / Gar) -6/Garrison -6/Factory (discovered 2 exits: *Low x2) -6/Lower Caves -6/Lower Caves -6/Zion -5/Proximity Caves -5/Factory -5/Garrison (discovered 3 exits: *Fac x3) -4/Factory -4/Extension (discovered 3 exits: *Res x2 / *Cet) -4/Cetus (discovered 2 exits: *Res / *Arc) -4/Archives (discovered 3 exits: *Res / *Hub x2) -4/Hub_04(d) -3/Research -3/Garrison -3/Testing -3/Garrison -2/Research (discovered 3 exits: *Acc x3) -1/Access History --------- Turn | Location | Event 6 | -11/Scrapyard | Discovered new exit (range 3) 12 | -11/Scrapyard | Entered Materials 312 | -10/Materials | Build established: Mutant 402 | -10/Materials | Discovered new exit (range 15) 1656 | -10/Materials | Entered Mines 1657 | -10/Mines | Met a Derelict bent on vengeance 1728 | -10/Mines | Discovered new exit (range 6) 1963 | -10/Mines | Discovered new exit (range 5) 2005 | -10/Mines | Assembled infested the area 2015 | -10/Mines | Entered Materials 2015 | -9/Materials | Evolved 2 slots: Propulsion x1, Utility x1 2317 | -9/Materials | Identified exit to Mines 2317 | -9/Materials | Identified exit to Storage 2623 | -9/Materials | Entered Storage 3037 | -9/Storage | Repaired Lgt. Treads 3286 | -9/Storage | Build established: Scavenger-Mutant 3385 | -9/Storage | Garrison activated, responded to threat 3606 | -9/Storage | Core integrity fell below 50% 3622 | -9/Storage | Lost 3 parts (1n2w) 3638 | -9/Storage | Discovered new exit (range 12) 3770 | -9/Storage | Found Prototype Launcher 3979 | -9/Storage | Build established: Mutant 4366 | -9/Storage | Assisted by bots powering up and referring to "LRC-V3" 4463 | -9/Storage | Entered Materials 4463 | -8/Materials | Accompanied by 10 allies 4463 | -8/Materials | Evolved 2 slots: Utility x1, Weapon x1 4521 | -8/Materials | Garrison activated, responded to threat 4687 | -8/Materials | Identified exit to Garrison 4722 | -8/Materials | Entered Garrison 4722 | -8/Garrison | Accompanied by 2 allies 4772 | -8/Garrison | Triggered checkpoint 4827 | -8/Garrison | Installed Relay Interface Framework 4857 | -8/Garrison | Garrison Relay disabled 4890 | -8/Garrison | Identified Gui. Missile Launcher 4929 | -8/Garrison | Triggered checkpoint 5044 | -8/Garrison | Triggered checkpoint 5120 | -8/Garrison | Triggered checkpoint 5155 | -8/Garrison | Discovered new exit (range 14) 5172 | -8/Garrison | Discovered new exit (range 6) 5209 | -8/Garrison | Entered Materials 5427 | -8/Materials | Garrison activated, responded to threat 5502 | -8/Materials | Identified exit to Garrison 5531 | -8/Materials | Entered Garrison 5531 | -8/Garrison | Accompanied by 4 allies 5672 | -8/Garrison | Triggered checkpoint 5727 | -8/Garrison | Rescued a captive Derelict 5737 | -8/Garrison | Rescued a captive Derelict 5752 | -8/Garrison | Garrison Relay disabled 5826 | -8/Garrison | Triggered checkpoint 5842 | -8/Garrison | Triggered checkpoint 5858 | -8/Garrison | Triggered checkpoint 5875 | -8/Garrison | Triggered checkpoint 5961 | -8/Garrison | Discovered new exit (range 14) 6176 | -8/Garrison | Triggered checkpoint 6191 | -8/Garrison | Build established: Scavenger-Tank 6290 | -8/Garrison | Destroyed 7 combat bots 6306 | -8/Garrison | Expanded RIF knowledge: Alert ID Control 6439 | -8/Garrison | Entered Factory 6439 | -7/Factory | Evolved 2 slots: Propulsion x1, Utility x1 6645 | -7/Factory | Identified exit to Lower Caves 7015 | -7/Factory | Discovered new exit (range 9) 7144 | -7/Factory | Fabricated M-28 Smith (x1) 7492 | -7/Factory | Repaired Hvy. Assault Cannon 7543 | -7/Factory | Entered Lower Caves 7543 | -7/Lower Caves | Accompanied by 1 ally 7544 | -7/Lower Caves | Encountered a Warlord checkpoint 7744 | -7/Lower Caves | Attracted the attention of an 0b10 checkpoint 8135 | -7/Lower Caves | Learned 4 Factory zone layouts 8721 | -7/Lower Caves | Identified exit to Lower Caves 8721 | -7/Lower Caves | Learned location of 1 exit from Proximity Caves 8721 | -7/Lower Caves | Learned location of 1 exit from Factory 8721 | -7/Lower Caves | Learned Factory trap positions 9254 | -7/Lower Caves | Build established: Mutant 9796 | -7/Lower Caves | Entered another Lower Caves area 9796 | -7/Lower Caves | Accompanied by 1 ally 9870 | -7/Lower Caves | Discovered new exit (range 15) 10488 | -7/Lower Caves | Encountered a Warlord checkpoint 10491 | -7/Lower Caves | Build established: Tank 10743 | -7/Lower Caves | Discovered new exit (range 14) 11239 | -7/Lower Caves | Entered Data Miner 11239 | -7/Data Miner | Accompanied by 1 ally 11239 | -7/Data Miner | Discovered new exit (range 6) 11270 | -7/Data Miner | Met Data Miner 11300 | -7/Data Miner | Learned location of Section 7 (-2) 11300 | -7/Data Miner | Acquired the access code to Warlord's prototype stash 11324 | -7/Data Miner | Received God Mode back door access code from Data Miner 11383 | -7/Data Miner | Entered Proximity Caves 11383 | -6/Proximity Caves | Accompanied by 1 ally 11384 | -6/Proximity Caves | Identified exit to Factory 11418 | -6/Proximity Caves | Escorted by Enhanced Grunt 12156 | -6/Proximity Caves | Learned location of 2 exits from Factory 12314 | -6/Proximity Caves | Entered Factory 12314 | -6/Factory | Accompanied by 2 allies 12314 | -6/Factory | Evolved 2 slots: Propulsion x1, Utility x1 12315 | -6/Factory | Identified exit to Lower Caves 12316 | -6/Factory | Identified exit to Factory 12318 | -6/Factory | Loaded intel: 80 trap records 12572 | -6/Factory | Repaired Broken Lgt. Treads 12879 | -6/Factory | Build established: Scavenger-Tank 13136 | -6/Factory | Identified exit to Garrison 13136 | -6/Factory | Entered Garrison 13136 | -6/Garrison | Accompanied by 2 allies 13190 | -6/Garrison | Triggered checkpoint 13202 | -6/Garrison | Triggered checkpoint 13205 | -6/Garrison | Garrison Relay disabled 13301 | -6/Garrison | Expanded RIF knowledge: Zone Cloak 13682 | -6/Garrison | Triggered checkpoint 13732 | -6/Garrison | Triggered checkpoint 14012 | -6/Garrison | Build established: Bothacker-Tank 14157 | -6/Garrison | Garrison Relay disabled 14354 | -6/Garrison | Garrison Relay disabled 14468 | -6/Garrison | Triggered checkpoint 14680 | -6/Garrison | Garrison Relay disabled 14761 | -6/Garrison | Discovered new exit (range 8) 14922 | -6/Garrison | Entered Factory 14922 | -6/Factory | Accompanied by 1 ally 15770 | -6/Factory | Build established: Bothacker-Mutant 16260 | -6/Factory | Incoming investigation squad redirected 16459 | -6/Factory | Spotted B-75 Beast 16498 | -6/Factory | Destroyed B-75 Beast 16687 | -6/Factory | Cargo convoy interrupted 16852 | -6/Factory | Entered Lower Caves 17391 | -6/Lower Caves | Spotted B-75 Beast 17409 | -6/Lower Caves | Destroyed B-75 Beast 17774 | -6/Lower Caves | Attracted the attention of an 0b10 checkpoint 17825 | -6/Lower Caves | Learned Factory interactive machine intel 18275 | -6/Lower Caves | Discovered new exit (range 16) 19601 | -6/Lower Caves | Attacked by a delusional Derelict stockpiling Unaware 20038 | -6/Lower Caves | Entered another Lower Caves area 20038 | -6/Lower Caves | Accompanied by 3 allies 20110 | -6/Lower Caves | Spotted B-75 Beast 20129 | -6/Lower Caves | Destroyed B-75 Beast 20463 | -6/Lower Caves | Encountered a Warlord checkpoint 21054 | -6/Lower Caves | Attracted the attention of an 0b10 checkpoint 21843 | -6/Lower Caves | Discovered new exit (range 18) 22163 | -6/Lower Caves | Entered Zion 22268 | -6/Zion | System corruption cleaned by Quarantine Array 22591 | -6/Zion | Discovered new exit (range 14) 22719 | -6/Zion | Build established: Bothacker-Tank 27162 | -6/Zion | Entered Proximity Caves 27242 | -5/Proximity Caves | Attracted the attention of an 0b10 outpost 27275 | -5/Proximity Caves | Destroyed 7 combat bots 27449 | -5/Proximity Caves | Build established: Bothacker-Mutant 27708 | -5/Proximity Caves | Learned Factory security intel 27892 | -5/Proximity Caves | Attracted the attention of an 0b10 checkpoint 28157 | -5/Proximity Caves | Discovered exit to Factory (range 10) 28393 | -5/Proximity Caves | Entered Factory 28393 | -5/Factory | Accompanied by 1 ally 28393 | -5/Factory | Evolved 2 slots: Power x1, Propulsion x1 28395 | -5/Factory | Loaded intel: 52 interactive machine locations 28555 | -5/Factory | Identified exit to Garrison 28568 | -5/Factory | Spotted B-75 Beast 28611 | -5/Factory | Entered Garrison 28611 | -5/Garrison | Accompanied by 3 allies 28690 | -5/Garrison | Triggered checkpoint 28724 | -5/Garrison | Garrison Relay disabled 28759 | -5/Garrison | Spotted Executioner 28759 | -5/Garrison | Spotted Executioner 28769 | -5/Garrison | Destroyed Executioner 28784 | -5/Garrison | Allies destroyed Executioner 28811 | -5/Garrison | Found Prototype Device 28811 | -5/Garrison | Identified Adv. Kinecellerator 28824 | -5/Garrison | Rewired Executioner 28825 | -5/Garrison | Rewired Executioner 28964 | -5/Garrison | Spotted B-75 Beast 28972 | -5/Garrison | Triggered checkpoint 28975 | -5/Garrison | Triggered checkpoint 28976 | -5/Garrison | Triggered checkpoint 28979 | -5/Garrison | Allies destroyed B-75 Beast 29166 | -5/Garrison | Discovered new exit (range 10) 29279 | -5/Garrison | Destroyed 9 combat bots 29440 | -5/Garrison | Triggered checkpoint 29530 | -5/Garrison | Triggered checkpoint 29596 | -5/Garrison | Expanded RIF knowledge: Zone Cloak 29637 | -5/Garrison | Garrison Relay disabled 29722 | -5/Garrison | Discovered new exit (range 12) 29899 | -5/Garrison | Build established: Botlord-Mutant 29989 | -5/Garrison | Discovered new exit (range 11) 29992 | -5/Garrison | Triggered checkpoint 30033 | -5/Garrison | Lost 3 parts (1p2u) 30094 | -5/Garrison | Triggered checkpoint 30139 | -5/Garrison | Found Exp. Targeting Computer 30217 | -5/Garrison | Garrison Relay disabled 30276 | -5/Garrison | Entered Factory 30276 | -4/Factory | Accompanied by 3 allies 30276 | -4/Factory | Evolved 2 slots: Utility x2 30526 | -4/Factory | First assault squad dispatched 30548 | -4/Factory | Incoming assault squad redirected 30887 | -4/Factory | Discovered new exit (range 6) 30896 | -4/Factory | Entered Extension 30896 | -4/Extension | Accompanied by 3 allies 30907 | -4/Extension | Rescued a captive Derelict 30925 | -4/Extension | Rescued a captive Derelict 30933 | -4/Extension | Rescued a captive Derelict 30939 | -4/Extension | Rescued A7 31146 | -4/Extension | First assault squad dispatched 31161 | -4/Extension | Incoming investigation squad redirected 31172 | -4/Extension | Incoming assault squad redirected 31373 | -4/Extension | Build established: Bothacker-Mutant 31442 | -4/Extension | Spotted B-86 Titan 31479 | -4/Extension | Core integrity fell below 50% 31480 | -4/Extension | Allies destroyed B-86 Titan 31495 | -4/Extension | Discovered new exit (range 19) 31495 | -4/Extension | Spotted B-86 Titan 31503 | -4/Extension | Incoming assault squad redirected 31530 | -4/Extension | Allies destroyed B-86 Titan 31551 | -4/Extension | Extracted ID and sensor layout for unrecognized location from A7's data core 31840 | -4/Extension | Discovered new exit (range 22) 31841 | -4/Extension | Discovered new exit (range 21) 31875 | -4/Extension | Entered Cetus 31875 | -4/Cetus | Accompanied by 2 allies 31893 | -4/Cetus | Spotted Cetus Guard 31893 | -4/Cetus | Spotted Cetus Guard 31900 | -4/Cetus | Spotted Cetus Guard 31908 | -4/Cetus | Spotted Cetus Guard 31924 | -4/Cetus | Core integrity fell below 20% 31931 | -4/Cetus | Destroyed Cetus Guard 31931 | -4/Cetus | Allies destroyed Cetus Guard 31937 | -4/Cetus | Allies destroyed Cetus Guard 31941 | -4/Cetus | Destroyed Cetus Guard 32045 | -4/Cetus | Cetus Manufacturing Module disabled 32074 | -4/Cetus | Destroyed 7 combat bots 32091 | -4/Cetus | Discovered new exit (range 21) 32149 | -4/Cetus | Spotted Cetus Guard 32151 | -4/Cetus | Spotted Cetus Guard 32153 | -4/Cetus | Spotted Cetus Guard 32156 | -4/Cetus | Destroyed Cetus Guard 32157 | -4/Cetus | Spotted Cetus Guard 32170 | -4/Cetus | Destroyed Cetus Guard 32172 | -4/Cetus | Allies destroyed Cetus Guard 32178 | -4/Cetus | Allies destroyed Cetus Guard 32188 | -4/Cetus | Discovered new exit (range 22) 32222 | -4/Cetus | Met Revision 17 32325 | -4/Cetus | Entered Archives 32325 | -4/Archives | Accompanied by 1 ally 32364 | -4/Archives | Discovered new exit (range 22) 32482 | -4/Archives | Discovered new exit (range 20) 32510 | -4/Archives | Discovered new exit (range 18) 32573 | -4/Archives | Unable to access archive contents 33298 | -4/Archives | Entered Hub_04(d) 33298 | -4/Hub_04(d) | Accompanied by 4 allies 33489 | -4/Hub_04(d) | Discovered new exit (range 12) 33547 | -4/Hub_04(d) | Lost 4 parts (1n1u2w) 33607 | -4/Hub_04(d) | Entered Research 33607 | -3/Research | Accompanied by 1 ally 33607 | -3/Research | Evolved 2 slots: Utility x2 33704 | -3/Research | Build established: Scavenger-Mutant 33741 | -3/Research | Identified exit to Garrison 33741 | -3/Research | Entered Garrison 33741 | -3/Garrison | Accompanied by 1 ally 33780 | -3/Garrison | Triggered checkpoint 33887 | -3/Garrison | Garrison Relay disabled 33964 | -3/Garrison | Crushed by falling debris 34017 | -3/Garrison | Crushed by falling debris 34018 | -3/Garrison | System corruption reached 10% 34023 | -3/Garrison | Crushed by falling debris 34045 | -3/Garrison | Crushed by falling debris 34063 | -3/Garrison | Crushed by falling debris 34076 | -3/Garrison | Lost 4 parts (4u) 34121 | -3/Garrison | Expanded RIF knowledge: Hotswap 34164 | -3/Garrison | Garrison Relay disabled 34270 | -3/Garrison | Triggered checkpoint 34312 | -3/Garrison | Triggered checkpoint 34334 | -3/Garrison | Triggered checkpoint 34408 | -3/Garrison | Spotted Executioner 34409 | -3/Garrison | Spotted Executioner 34418 | -3/Garrison | Allies destroyed Executioner 34428 | -3/Garrison | Allies destroyed Executioner 34742 | -3/Garrison | Discovered new exit (range 11) 35020 | -3/Garrison | Entered Testing 35054 | -3/Testing | Spotted PX-50NAUEZKA0 35067 | -3/Testing | Rewired PX-50NAUEZKA0 35270 | -3/Testing | First assault squad dispatched 35286 | -3/Testing | Incoming assault squad redirected 35365 | -3/Testing | Build established: Botlord-Mutant 35475 | -3/Testing | Identified exit to Garrison 35475 | -3/Testing | Entered Garrison 35600 | -3/Garrison | Triggered checkpoint 35600 | -3/Garrison | Triggered checkpoint 35784 | -3/Garrison | Expanded RIF knowledge: Autoassimilate 35902 | -3/Garrison | Triggered checkpoint 35926 | -3/Garrison | Garrison Relay disabled 36013 | -3/Garrison | Triggered checkpoint 36135 | -3/Garrison | Q-Series assembled to engage unique threat in Research 36210 | -3/Garrison | Discovered new exit (range 8) 36310 | -3/Garrison | Expanded RIF knowledge: Signal Jamming 36423 | -3/Garrison | Found Prototype Slashing Weapon 36423 | -3/Garrison | Identified Nanosword 36470 | -3/Garrison | Triggered checkpoint 36575 | -3/Garrison | Entered Research 36575 | -2/Research | Evolved 2 slots: Power x1, Utility x1 36672 | -2/Research | Identified exit to Access 36745 | -2/Research | Spotted B-90 Cyclops 36750 | -2/Research | Assimilated Cyclops 9a with formatsys_high 36797 | -2/Research | Spotted B-90 Cyclops 36809 | -2/Research | Allies destroyed B-90 Cyclops 36825 | -2/Research | First assault squad dispatched 36840 | -2/Research | Incoming assault squad redirected 37099 | -2/Research | Incoming assault squad redirected 37113 | -2/Research | High security lockdown imminent 37193 | -2/Research | High security lockdown engaged 37323 | -2/Research | Entered Access 37323 | -1/Access | Accompanied by 1 ally 37323 | -1/Access | Evolved 2 slots: Utility x2 37573 | -1/Access | First assault squad dispatched 37589 | -1/Access | Incoming assault squad redirected 37594 | -1/Access | Incoming assault squad redirected 37677 | -1/Access | Garrison activated, responded to threat 37704 | -1/Access | High security lockdown imminent 37784 | -1/Access | High security lockdown engaged 37843 | -1/Access | Spotted Striker 37845 | -1/Access | Spotted Executioner 37865 | -1/Access | Allies destroyed Striker 37876 | -1/Access | Found Exp. Core Analyzer 38006 | -1/Access | Spotted Investigator 38006 | -1/Access | Scanned by Researcher 38006 | -1/Access | Allies destroyed Investigator 38017 | -1/Access | Garrison activated, responded to threat 38036 | -1/Access | Destroyed 9 combat bots 38048 | -1/Access | Spotted Striker 38052 | -1/Access | Spotted Striker 38052 | -1/Access | Spotted Executioner 38069 | -1/Access | Allies destroyed Striker 38071 | -1/Access | Assimilated ARC 10a with formatsys_deep 38079 | -1/Access | Destroyed Striker 38083 | -1/Access | Allies destroyed Executioner 38115 | -1/Access | Found Prototype Processor 38115 | -1/Access | Identified Exp. Signal Interpreter 38119 | -1/Access | Lost 3 parts (3u) 38119 | -1/Access | Found Exp. Signal Interpreter 38122 | -1/Access | Found Exp. Core Analyzer 38226 | -1/Access | Core integrity fell below 50% 38286 | -1/Access | Core integrity fell below 20% 38306 | -1/Access | Core destroyed Last Messages --------------- 38288_ Acquired 49 matter. 38289_ System corrupted: Energy discharge (-18). 38290_ Slammed into G-73 Enforcer. 38290_ Artificer 10a repairs Lgt. Quantum Reactor. 38293_ Acquired 8 matter. 38294_ G-73 Enforcer destroyed. 38295_ Acquired 6 matter. 38297_ Acquired 3 matter. 38301_ Penetrated by Slug. 38301_ K-01 Serf destroyed. 38302_ Acquired 15 matter. 38302_ G-73 Enforcer destroyed. 38303_ Acquired 16 matter. 38304_ Penetrated by Slug. 38304_ R-10 Processor collects Lgt. Quantum Reactor. 38304_ W-44 Eye distress signal jammed. 38305_ Acquired 8 matter. 38305_ W-44 Eye distress signal jammed. 38306_ Y-72 Warden destroyed. 38306_ W-44 Eye knocked back. Map ----- +----------------------------------------------------+ | ?????????????????????????????????????????????????? | | ?????????????????????????????????????????????????? | | ?????????????????????????????????????????????????? | | ?????????????????????????????????????????????????? | | ?????????????????????????????????????????????????? | | ?????????????????????????????????????????????????? | | ?????????????????????????????????????????????????? | | ??????????????????#########??????????????????????? | | ??????????????????# ????#?????????????????? | | ??????????????????# ??? #?????????????????? | | ?????????????? ???# " #?????????????????? | | ????????????? ??# [""" #?????????????????? | | ??????????????? ?# !*%G #?????????????????? | | ???????????????? # !""" #?????????????????? | | ????????????????? / ! #?????????????????? | | ??????????????????# ! #?????????????????? | | ??????????????????# #?????????????????? | | ??????????????????? #?????????????????? | | ????????????????????? ???????????????????? | | ?????????????????????? % ?????????????????????? | | ???????????????????????#/#??????????????????????? | | ???????????????????????#w#??????????????????????? | | /##?????????????????????#%#??????????????????????? | | ?????????????# #######%#??????????????????????? | | ?????????????# !%%R=#??????????????????????? | | ?????????????#########@#??????????????????????? | | ?????????????????????#%#??????????????????????? | | ?????????????????????#=#??????????????????????? | | #?????????????????????#m#??????????????????????? | | #?????????????????##??#%#??????????????????????? | | #?????????????????# #?#i#####??????????????????? | | +??????????????????#[##%# ##?????????????????? | | #????????????????###%=# #% #?????????????????? | | #??????????????###%=[%%b#!= #?????????????????? | | #??????????????# %!%!!%!= #?????????????????? | | #??????????????## #[|##%##= ##????????????????? | | #???????????????# ## %%! #????????????????? | | #???????????????## =# #####??????????????? | | #???????????????# # %R # # ##?????????????? | | #???????????????## #%% #?????????????? | | #???????????????# % # %% ###?????????????? | | ##??????????????## # # #[ ######????????????? | | ###############?# % !=% #????????????? | | #?# # %%=# % #????????????? | | #### [ [ """" #????????????? | | % %=%=# ="R"" #????????????? | | ############/#### %!=#%# "" "" !#????????????? | | ####?????# #%!%%=!=! #????????????? | | ?????????# #*%=#!=*%= #????????????? | | ?????????# "%#!#%%!% #????????????? | +----------------------------------------------------+ Best States ------------- Heat Dissipation 90 Energy Generation 57 Energy Capacity 640 Matter Stores 300 Matter Capacity 300 Sight Range 22 Robot Scan Range 16 Terrain Scan Density 10 Armor Coverage 3300 Resistance: KI 30 Resistance: TH 15 Weapon Shielding 66 Weapon Cycling 15 Phase Shifting 15 Evasion (%) 55 Targeting Accuracy 20 Target Analysis 8 Core Analysis 12 Recoil Reduction 6 Kinecelleration 50 Salvage Targeting 1 Offensive Hacking 12 Defensive Hacking 12 Relay Coupler Types 3 Relay Coupler Value 66 Authchip Count 3 Item Schematics ----------------- Huge Storage Unit | -10/Materials | Hacked Combat Drone Bay | -7/Data Miner | Free Lgt. Regenerative Plating | -7/Data Miner | Free Biomechanical Wings | -7/Data Miner | Free Thermal Defense Suite | -7/Data Miner | Free Force Rifle | -7/Data Miner | Free Gyrokinetic Inverter | -7/Data Miner | Free Adv. System Shield | -7/Data Miner | Free Imp. Arc Projector | -7/Data Miner | Free Enh. Gauss Cannon | -7/Data Miner | Free Adv. Target Analyzer | -7/Data Miner | Free Imp. Heavy Siege Treads | -5/Factory | Hacked Energy Mantle | -3/Testing | Archive Com. Particle Reactor | -3/Testing | Archive Exp. Target Analyzer | -3/Testing | Archive Cld. Antigrav System | -3/Testing | Archive Prc. Energy Filter | -3/Testing | Archive Robot Schematics ------------------ M-28 Smith | -7/Factory | Hacked B-48 Gladiator | -7/Data Miner | Free S-27 Virus | -7/Data Miner | Free L-41 Fighter | -7/Data Miner | Free G-50 Soldier | -7/Data Miner | Free Fabricated ------------ M-28 Smith | x1 | -7/Factory | Authchip Alien Tech Used ----------------- None Achievements -------------- None Challenges ------------ None Player 2 | -11 -10 -10 -9 -9 -8 -8 -8 -8 -7 -7 -7 -7 -6 -6 -6 -6 -6 -6 -6 -5 -5 -5 -4 -4 -4 -4 -4 -3 -3 -3 -3 -2 -1 ---------- Run | Scr Mat Min Mat Sto Mat Gar Mat Gar Fac Low Low Dat Pro Fac Gar Fac Low Low Zio Pro Fac Gar Fac Ext Cet Arc Hub Res Gar Tes Gar Res Acc Slots Evolved 18 | . . 2 . 2 . . . 2 . . . . 2 . . . . . . 2 . 2 . . . . 2 . . . 2 2 . Power 3 | . . 1 . . . . . 1 . . . . . . . . . . . . . 1 . . . . . . . . . . . Propulsion 5 | . . 1 . 1 . . . . . . . . . . . . . . . . . 1 . . . . 1 . . . . 1 . Utility 8 | . . . . 1 . . . 1 . . . . 1 . . . . . . 2 . . . . . . 1 . . . 1 1 . Weapon 2 | . . . . . . . . . . . . . 1 . . . . . . . . . . . . . . . . . 1 . . Parts Attached 335 | . 14 . 7 22 7 5 3 4 7 5 1 . 3 7 17 24 3 3 . 2 2 41 11 48 4 . 6 4 23 12 15 20 15 Parts Lost 83 | . . 1 . 6 . 4 . . . 1 . . . . 4 . . . . . 1 9 5 22 . . 4 . 4 . 2 1 19 Damage Taken 18269 | . 197 230 . 673 358 463 . 65 254 664 160 . 13 58 1034 370 138 297 . 77 179 715 874 3197 332 27 742 . 826 567 1045 981 3733 Core 3230 | . 12 43 . 183 93 36 . 15 11 72 29 . . . 98 24 37 24 . 3 21 98 38 692 30 . 44 . 24 10 66 92 1435 Player 2/Cogmind (%) 72 | . 27 95 . 64 64 100 . 25 44 90 76 . . . 100 24 64 100 . 100 100 41 100 81 75 . 55 . 11 100 56 80 89 Absorbed by Shields 4548 | . . . . . . . . . . . . . . . 100 89 28 80 . 14 50 147 . 264 144 . 113 . 299 585 961 981 693 Damage Inflicted 48496 | . 260 43 83 698 750 495 97 607 405 790 151 . 34 512 1484 2093 1369 760 . 701 164 2966 1948 5388 1443 703 1457 28 1593 4344 7402 3408 6320 Player 2/Cogmind (%) 55 | . 31 23 26 24 38 36 31 23 40 48 28 . 8 69 56 57 57 37 . 24 50 47 91 86 36 80 50 100 59 92 72 60 45 Combat Hostiles Destroyed 231 | . 5 . 1 8 10 7 2 7 3 7 1 . 1 3 11 11 9 2 . 6 . 12 6 19 5 1 8 . 10 6 27 10 33 Player 2/Cogmind (%) 51 | . 50 . 20 28 50 63 100 30 50 46 25 . 20 60 61 52 60 28 . 25 . 42 85 95 31 100 72 . 62 75 72 62 51 Game ------ Seed MachineDrainedDoomcannon Manual? 0 Play Time 03:17:19 Cumulative 1168.6 hours Start 2022.08.28 @ 00:13:27 End 2022.08.28 @ 15:22:48 Sessions 7 Manual Loads 0 Difficulty Rogue Special Mode AFD2020/Player2 Game No. 817 Rogue 813 Adventurer 4 Explorer 0 Win Type - Total 128 Types 98/9/8/5/2/0/1/3/2 Lore% 94 Gallery% 97 Achievement% 98 Wizard Run 0 Options --------- ASCII 0 Keyboard 1 Movement Vi Keybinds 0 Fullscreen 0 Font 20/X11 Map View 76x50 Tactical HUD 1 Map Filters NONE Filters NONE Steam 1 RUN: 1fda4785-4837-409d-a77c-6e6fce0b91c5